Body,Body name,Date,Transaction number,Amount,Supplier name,Supplier ID,Expense area,Fund type,Expense type
http://www.ons.gov.uk/ons/guide-method/geography/products/names--codes-and-look-ups/names-and-codes-listings/names-and-codes-for-administrative-geography/index.html,Thanet District Council,04/06/2013,338672,604.95,Adecco Uk Ltd,ADE005,Director of Corporate Services and Transformation,Revenue,Employees
http://www.ons.gov.uk/ons/guide-method/geography/products/names--codes-and-look-ups/names-and-codes-listings/names-and-codes-for-administrative-geography/index.html,Thanet District Council,04/06/2013,337764,350.00,Albion Fencing Kent Ltd,ALB005,Director of Operational Services,Revenue,Premises Related Expenditure
http://www.ons.gov.uk/ons/guide-method/geography/products/names--codes-and-look-ups/names-and-codes-listings/names-and-codes-for-administrative-geography/index.html,Thanet District Council,04/06/2013,338179,4506.88,Albion Fencing Kent Ltd,ALB005,Director of Operational Services,Revenue,Premises Related Expenditure
http://www.ons.gov.uk/ons/guide-method/geography/products/names--codes-and-look-ups/names-and-codes-listings/names-and-codes-for-administrative-geography/index.html,Thanet District Council,04/06/2013,339042,266.40,Allstar Business Solutions Ltd,ALL038,Director of Operational Services,Revenue,Transport Related Expenditure
http://www.ons.gov.uk/ons/guide-method/geography/products/names--codes-and-look-ups/names-and-codes-listings/names-and-codes-for-administrative-geography/index.html,Thanet District Council,04/06/2013,338274,1460.00,Ashford Borough Council,ASH001,Director of Community Services,Revenue,Supplies And Services
http://www.ons.gov.uk/ons/guide-method/geography/products/names--codes-and-look-ups/names-and-codes-listings/names-and-codes-for-administrative-geography/index.html,Thanet District Council,04/06/2013,339112,500.00,Ashford Borough Council,ASH001,Director of Community Services,Revenue,Supplies And Services
http://www.ons.gov.uk/ons/guide-method/geography/products/names--codes-and-look-ups/names-and-codes-listings/names-and-codes-for-administrative-geography/index.html,Thanet District Council,04/06/2013,339038,4557.68,Better Beaches Ltd,BET009,Director of Operational Services,Revenue,Supplies And Services
http://www.ons.gov.uk/ons/guide-method/geography/products/names--codes-and-look-ups/names-and-codes-listings/names-and-codes-for-administrative-geography/index.html,Thanet District Council,04/06/2013,337583,560.00,British Telecommunications Plc,BTE005,Director of Corporate Services and Transformation,Revenue,Supplies And Services
http://www.ons.gov.uk/ons/guide-method/geography/products/names--codes-and-look-ups/names-and-codes-listings/names-and-codes-for-administrative-geography/index.html,Thanet District Council,04/06/2013,338566,950.00,Broadstairs Metal Craft,BRO058,Director of Operational Services,Revenue,Premises Related Expenditure
http://www.ons.gov.uk/ons/guide-method/geography/products/names--codes-and-look-ups/names-and-codes-listings/names-and-codes-for-administrative-geography/index.html,Thanet District Council,04/06/2013,338733,1893.10,Bt Payment Services Ltd,BTE003,Director of Corporate Services and Transformation,Balance Sheet,Current Assets
http://www.ons.gov.uk/ons/guide-method/geography/products/names--codes-and-look-ups/names-and-codes-listings/names-and-codes-for-administrative-geography/index.html,Thanet District Council,04/06/2013,337759,51629.86,Canterbury City Council,CAN004,Director of Corporate Services and Transformation,Balance Sheet,Long Term Assets
http://www.ons.gov.uk/ons/guide-method/geography/products/names--codes-and-look-ups/names-and-codes-listings/names-and-codes-for-administrative-geography/index.html,Thanet District Council,04/06/2013,338560,281.25,Circus 2000 Ltd,CIR005,Director of Community Services,Revenue,Supplies And Services
http://www.ons.gov.uk/ons/guide-method/geography/products/names--codes-and-look-ups/names-and-codes-listings/names-and-codes-for-administrative-geography/index.html,Thanet District Council,04/06/2013,338669,10966.02,Computerland Uk Limited,COM045,East Kent Shared Services,Revenue,Supplies And Services
http://www.ons.gov.uk/ons/guide-method/geography/products/names--codes-and-look-ups/names-and-codes-listings/names-and-codes-for-administrative-geography/index.html,Thanet District Council,04/06/2013,338541,1340.00,Contracked Lands,CON020,Director of Operational Services,Revenue,Premises Related Expenditure
http://www.ons.gov.uk/ons/guide-method/geography/products/names--codes-and-look-ups/names-and-codes-listings/names-and-codes-for-administrative-geography/index.html,Thanet District Council,04/06/2013,338259,992.00,Dover District Council,DOV001,Director of Corporate Services and Transformation,Revenue,Employees
http://www.ons.gov.uk/ons/guide-method/geography/products/names--codes-and-look-ups/names-and-codes-listings/names-and-codes-for-administrative-geography/index.html,Thanet District Council,04/06/2013,338882,296.75,Dover District Council,DOV001,Director of Corporate Services and Transformation,Revenue,Employees
http://www.ons.gov.uk/ons/guide-method/geography/products/names--codes-and-look-ups/names-and-codes-listings/names-and-codes-for-administrative-geography/index.html,Thanet District Council,04/06/2013,338664,226.20,E.On,EON001,Director of Community Services,Revenue,Premises Related Expenditure
http://www.ons.gov.uk/ons/guide-method/geography/products/names--codes-and-look-ups/names-and-codes-listings/names-and-codes-for-administrative-geography/index.html,Thanet District Council,04/06/2013,338085,230.00,Eco-Oil Ltd,ECO002,Director of Operational Services,Revenue,Premises Related Expenditure
http://www.ons.gov.uk/ons/guide-method/geography/products/names--codes-and-look-ups/names-and-codes-listings/names-and-codes-for-administrative-geography/index.html,Thanet District Council,04/06/2013,338552,4683.82,Fuel Oils Kent,FUE001,Director of Operational Services,Revenue,Supplies And Services
http://www.ons.gov.uk/ons/guide-method/geography/products/names--codes-and-look-ups/names-and-codes-listings/names-and-codes-for-administrative-geography/index.html,Thanet District Council,04/06/2013,338294,250.00,George Mccabe,MCC001,Director of Operational Services,Revenue,Premises Related Expenditure
http://www.ons.gov.uk/ons/guide-method/geography/products/names--codes-and-look-ups/names-and-codes-listings/names-and-codes-for-administrative-geography/index.html,Thanet District Council,04/06/2013,338082,245.87,Hire Station,HIR001,Director of Operational Services,Revenue,Supplies And Services
http://www.ons.gov.uk/ons/guide-method/geography/products/names--codes-and-look-ups/names-and-codes-listings/names-and-codes-for-administrative-geography/index.html,Thanet District Council,04/06/2013,338915,499.50,Hr Go Recruitment Ltd,HRG002,Director of Operational Services,Revenue,Employees
http://www.ons.gov.uk/ons/guide-method/geography/products/names--codes-and-look-ups/names-and-codes-listings/names-and-codes-for-administrative-geography/index.html,Thanet District Council,04/06/2013,338567,1184.00,Idox Software  Limited,IDO001,Director of Community Services,Revenue,Supplies And Services
http://www.ons.gov.uk/ons/guide-method/geography/products/names--codes-and-look-ups/names-and-codes-listings/names-and-codes-for-administrative-geography/index.html,Thanet District Council,04/06/2013,338677,214.44,Insight Direct (Uk) Ltd,INS013,East Kent Shared Services,Revenue,Supplies And Services
http://www.ons.gov.uk/ons/guide-method/geography/products/names--codes-and-look-ups/names-and-codes-listings/names-and-codes-for-administrative-geography/index.html,Thanet District Council,04/06/2013,338620,520.00,Jump It Recruitment Solutions Ltd,JUM001,East Kent Shared Services,Revenue,Employees
http://www.ons.gov.uk/ons/guide-method/geography/products/names--codes-and-look-ups/names-and-codes-listings/names-and-codes-for-administrative-geography/index.html,Thanet District Council,04/06/2013,338918,650.00,Jump It Recruitment Solutions Ltd,JUM001,East Kent Shared Services,Revenue,Employees
http://www.ons.gov.uk/ons/guide-method/geography/products/names--codes-and-look-ups/names-and-codes-listings/names-and-codes-for-administrative-geography/index.html,Thanet District Council,04/06/2013,338212,3474.33,Kent County Council (Kcs),KCC003,Director of Operational Services,Revenue,Premises Related Expenditure
http://www.ons.gov.uk/ons/guide-method/geography/products/names--codes-and-look-ups/names-and-codes-listings/names-and-codes-for-administrative-geography/index.html,Thanet District Council,04/06/2013,338213,11261.97,Kent County Council (Kcs),KCC003,Director of Operational Services,Revenue,Premises Related Expenditure
http://www.ons.gov.uk/ons/guide-method/geography/products/names--codes-and-look-ups/names-and-codes-listings/names-and-codes-for-administrative-geography/index.html,Thanet District Council,04/06/2013,338214,5533.20,Kent County Council (Kcs),KCC003,Director of Operational Services,Revenue,Premises Related Expenditure
http://www.ons.gov.uk/ons/guide-method/geography/products/names--codes-and-look-ups/names-and-codes-listings/names-and-codes-for-administrative-geography/index.html,Thanet District Council,04/06/2013,338608,5843.65,Kent County Council (Kcs),KCC003,Director of Operational Services,Revenue,Premises Related Expenditure
http://www.ons.gov.uk/ons/guide-method/geography/products/names--codes-and-look-ups/names-and-codes-listings/names-and-codes-for-administrative-geography/index.html,Thanet District Council,04/06/2013,338609,11968.67,Kent County Council (Kcs),KCC003,Director of Operational Services,Revenue,Premises Related Expenditure
http://www.ons.gov.uk/ons/guide-method/geography/products/names--codes-and-look-ups/names-and-codes-listings/names-and-codes-for-administrative-geography/index.html,Thanet District Council,04/06/2013,338610,-3474.33,Kent County Council (Kcs),KCC003,Director of Operational Services,Revenue,Premises Related Expenditure
http://www.ons.gov.uk/ons/guide-method/geography/products/names--codes-and-look-ups/names-and-codes-listings/names-and-codes-for-administrative-geography/index.html,Thanet District Council,04/06/2013,338611,-5533.20,Kent County Council (Kcs),KCC003,Director of Operational Services,Revenue,Premises Related Expenditure
http://www.ons.gov.uk/ons/guide-method/geography/products/names--codes-and-look-ups/names-and-codes-listings/names-and-codes-for-administrative-geography/index.html,Thanet District Council,04/06/2013,338612,-11261.97,Kent County Council (Kcs),KCC003,Director of Operational Services,Revenue,Premises Related Expenditure
http://www.ons.gov.uk/ons/guide-method/geography/products/names--codes-and-look-ups/names-and-codes-listings/names-and-codes-for-administrative-geography/index.html,Thanet District Council,04/06/2013,338613,3682.96,Kent County Council (Kcs),KCC003,Director of Operational Services,Revenue,Premises Related Expenditure
http://www.ons.gov.uk/ons/guide-method/geography/products/names--codes-and-look-ups/names-and-codes-listings/names-and-codes-for-administrative-geography/index.html,Thanet District Council,04/06/2013,338711,631.11,Kent County Council (Kcs),KCC003,Director of Corporate Services and Transformation,Revenue,Supplies And Services
http://www.ons.gov.uk/ons/guide-method/geography/products/names--codes-and-look-ups/names-and-codes-listings/names-and-codes-for-administrative-geography/index.html,Thanet District Council,04/06/2013,338712,4368.21,Kent County Council (Kcs),KCC003,Director of Corporate Services and Transformation,Revenue,Supplies And Services
http://www.ons.gov.uk/ons/guide-method/geography/products/names--codes-and-look-ups/names-and-codes-listings/names-and-codes-for-administrative-geography/index.html,Thanet District Council,04/06/2013,338943,53677.34,Kent County Council Re Pension Fund,KCC001,Director of Corporate Services and Transformation,Revenue,Employees
http://www.ons.gov.uk/ons/guide-method/geography/products/names--codes-and-look-ups/names-and-codes-listings/names-and-codes-for-administrative-geography/index.html,Thanet District Council,04/06/2013,338622,40800.00,Kent Probation Trust,KPT001,Director of Community Services,Revenue,Supplies And Services
http://www.ons.gov.uk/ons/guide-method/geography/products/names--codes-and-look-ups/names-and-codes-listings/names-and-codes-for-administrative-geography/index.html,Thanet District Council,04/06/2013,337838,189350.99,Lakehouse Contracts Ltd,LAK002,Director of Corporate Services and Transformation,Balance Sheet,Current Assets
http://www.ons.gov.uk/ons/guide-method/geography/products/names--codes-and-look-ups/names-and-codes-listings/names-and-codes-for-administrative-geography/index.html,Thanet District Council,04/06/2013,337168,255.00,M D Electrics,MDE001,Director of Operational Services,Revenue,Premises Related Expenditure
http://www.ons.gov.uk/ons/guide-method/geography/products/names--codes-and-look-ups/names-and-codes-listings/names-and-codes-for-administrative-geography/index.html,Thanet District Council,04/06/2013,337709,704.20,Marlec Marine Ltd,MAR010,Director of Operational Services,Revenue,Supplies And Services
http://www.ons.gov.uk/ons/guide-method/geography/products/names--codes-and-look-ups/names-and-codes-listings/names-and-codes-for-administrative-geography/index.html,Thanet District Council,04/06/2013,338559,1410.48,Mears Ltd,MEA003,Director of Operational Services,Revenue,Premises Related Expenditure
http://www.ons.gov.uk/ons/guide-method/geography/products/names--codes-and-look-ups/names-and-codes-listings/names-and-codes-for-administrative-geography/index.html,Thanet District Council,04/06/2013,338614,3279.84,Mears Ltd,MEA003,Director of Corporate Services and Transformation,Balance Sheet,Current Assets
http://www.ons.gov.uk/ons/guide-method/geography/products/names--codes-and-look-ups/names-and-codes-listings/names-and-codes-for-administrative-geography/index.html,Thanet District Council,04/06/2013,338615,591.87,Mears Ltd,MEA003,Director of Corporate Services and Transformation,Balance Sheet,Current Assets
http://www.ons.gov.uk/ons/guide-method/geography/products/names--codes-and-look-ups/names-and-codes-listings/names-and-codes-for-administrative-geography/index.html,Thanet District Council,04/06/2013,338616,26521.40,Mears Ltd,MEA003,Director of Corporate Services and Transformation,Balance Sheet,Current Assets
http://www.ons.gov.uk/ons/guide-method/geography/products/names--codes-and-look-ups/names-and-codes-listings/names-and-codes-for-administrative-geography/index.html,Thanet District Council,04/06/2013,338617,50205.88,Mears Ltd,MEA003,Director of Corporate Services and Transformation,Balance Sheet,Current Assets
http://www.ons.gov.uk/ons/guide-method/geography/products/names--codes-and-look-ups/names-and-codes-listings/names-and-codes-for-administrative-geography/index.html,Thanet District Council,04/06/2013,338618,19581.08,Mears Ltd,MEA003,Director of Corporate Services and Transformation,Balance Sheet,Current Assets
http://www.ons.gov.uk/ons/guide-method/geography/products/names--codes-and-look-ups/names-and-codes-listings/names-and-codes-for-administrative-geography/index.html,Thanet District Council,04/06/2013,338888,1381.59,Mears Ltd,MEA003,Director of Corporate Services and Transformation,Balance Sheet,Current Assets
http://www.ons.gov.uk/ons/guide-method/geography/products/names--codes-and-look-ups/names-and-codes-listings/names-and-codes-for-administrative-geography/index.html,Thanet District Council,04/06/2013,338889,4269.57,Mears Ltd,MEA003,Director of Corporate Services and Transformation,Balance Sheet,Current Assets
http://www.ons.gov.uk/ons/guide-method/geography/products/names--codes-and-look-ups/names-and-codes-listings/names-and-codes-for-administrative-geography/index.html,Thanet District Council,04/06/2013,338890,2494.80,Mears Ltd,MEA003,Director of Corporate Services and Transformation,Balance Sheet,Current Assets
http://www.ons.gov.uk/ons/guide-method/geography/products/names--codes-and-look-ups/names-and-codes-listings/names-and-codes-for-administrative-geography/index.html,Thanet District Council,04/06/2013,338892,3505.08,Mears Ltd,MEA003,Director of Corporate Services and Transformation,Balance Sheet,Current Assets
http://www.ons.gov.uk/ons/guide-method/geography/products/names--codes-and-look-ups/names-and-codes-listings/names-and-codes-for-administrative-geography/index.html,Thanet District Council,04/06/2013,338893,29544.98,Mears Ltd,MEA003,Director of Corporate Services and Transformation,Balance Sheet,Current Assets
http://www.ons.gov.uk/ons/guide-method/geography/products/names--codes-and-look-ups/names-and-codes-listings/names-and-codes-for-administrative-geography/index.html,Thanet District Council,04/06/2013,338894,4233.30,Mears Ltd,MEA003,Director of Corporate Services and Transformation,Balance Sheet,Current Assets
http://www.ons.gov.uk/ons/guide-method/geography/products/names--codes-and-look-ups/names-and-codes-listings/names-and-codes-for-administrative-geography/index.html,Thanet District Council,04/06/2013,338895,4603.44,Mears Ltd,MEA003,Director of Corporate Services and Transformation,Balance Sheet,Current Assets
http://www.ons.gov.uk/ons/guide-method/geography/products/names--codes-and-look-ups/names-and-codes-listings/names-and-codes-for-administrative-geography/index.html,Thanet District Council,04/06/2013,338901,2135.97,Mears Ltd,MEA003,Director of Corporate Services and Transformation,Balance Sheet,Current Assets
http://www.ons.gov.uk/ons/guide-method/geography/products/names--codes-and-look-ups/names-and-codes-listings/names-and-codes-for-administrative-geography/index.html,Thanet District Council,04/06/2013,338645,950.00,Michael Page Finance,PAG008,Director of Corporate Services and Transformation,Revenue,Employees
http://www.ons.gov.uk/ons/guide-method/geography/products/names--codes-and-look-ups/names-and-codes-listings/names-and-codes-for-administrative-geography/index.html,Thanet District Council,04/06/2013,338903,1311.00,Michael Page Finance,PAG008,Director of Corporate Services and Transformation,Revenue,Employees
http://www.ons.gov.uk/ons/guide-method/geography/products/names--codes-and-look-ups/names-and-codes-listings/names-and-codes-for-administrative-geography/index.html,Thanet District Council,04/06/2013,337564,531.83,Multifire Maintenance Services Ltd,MUL005,Director of Community Services,Revenue,Supplies And Services
http://www.ons.gov.uk/ons/guide-method/geography/products/names--codes-and-look-ups/names-and-codes-listings/names-and-codes-for-administrative-geography/index.html,Thanet District Council,04/06/2013,338713,370.48,O2 (Uk) Ltd,O2U001,Director of Operational Services,Revenue,Supplies And Services
http://www.ons.gov.uk/ons/guide-method/geography/products/names--codes-and-look-ups/names-and-codes-listings/names-and-codes-for-administrative-geography/index.html,Thanet District Council,04/06/2013,338268,758.54,Ocs Group Uk Ltd T/A Fountains,OCS005,Director of Operational Services,Revenue,Premises Related Expenditure
http://www.ons.gov.uk/ons/guide-method/geography/products/names--codes-and-look-ups/names-and-codes-listings/names-and-codes-for-administrative-geography/index.html,Thanet District Council,04/06/2013,338629,897.30,Ocs Group Uk Ltd T/A Fountains,OCS005,Director of Operational Services,Revenue,Premises Related Expenditure
http://www.ons.gov.uk/ons/guide-method/geography/products/names--codes-and-look-ups/names-and-codes-listings/names-and-codes-for-administrative-geography/index.html,Thanet District Council,04/06/2013,338651,402.48,Ocs Group Uk Ltd T/A Fountains,OCS005,Director of Operational Services,Revenue,Premises Related Expenditure
http://www.ons.gov.uk/ons/guide-method/geography/products/names--codes-and-look-ups/names-and-codes-listings/names-and-codes-for-administrative-geography/index.html,Thanet District Council,04/06/2013,338715,285.82,Orange Personal Communications Ltd,ORA002,Director of Corporate Services and Transformation,Revenue,Supplies And Services
http://www.ons.gov.uk/ons/guide-method/geography/products/names--codes-and-look-ups/names-and-codes-listings/names-and-codes-for-administrative-geography/index.html,Thanet District Council,04/06/2013,337810,310.00,P Lawrence & Son,LAW001,Director of Operational Services,Revenue,Premises Related Expenditure
http://www.ons.gov.uk/ons/guide-method/geography/products/names--codes-and-look-ups/names-and-codes-listings/names-and-codes-for-administrative-geography/index.html,Thanet District Council,04/06/2013,337811,4470.00,P Lawrence & Son,LAW001,Director of Operational Services,Revenue,Premises Related Expenditure
http://www.ons.gov.uk/ons/guide-method/geography/products/names--codes-and-look-ups/names-and-codes-listings/names-and-codes-for-administrative-geography/index.html,Thanet District Council,04/06/2013,338650,8731.80,Phoenix Software Ltd,PHO002,East Kent Shared Services,Revenue,Supplies And Services
http://www.ons.gov.uk/ons/guide-method/geography/products/names--codes-and-look-ups/names-and-codes-listings/names-and-codes-for-administrative-geography/index.html,Thanet District Council,04/06/2013,338147,805.00,R Cannon,CAN007,Director of Operational Services,Revenue,Premises Related Expenditure
http://www.ons.gov.uk/ons/guide-method/geography/products/names--codes-and-look-ups/names-and-codes-listings/names-and-codes-for-administrative-geography/index.html,Thanet District Council,04/06/2013,338634,350.00,Rogers & Hambidge,ROG002,Director of Community Services,Revenue,Supplies And Services
http://www.ons.gov.uk/ons/guide-method/geography/products/names--codes-and-look-ups/names-and-codes-listings/names-and-codes-for-administrative-geography/index.html,Thanet District Council,04/06/2013,338981,330.00,Sampson Challis Ltd,SAM009,Director of Operational Services,Revenue,Supplies And Services
http://www.ons.gov.uk/ons/guide-method/geography/products/names--codes-and-look-ups/names-and-codes-listings/names-and-codes-for-administrative-geography/index.html,Thanet District Council,04/06/2013,338709,272.50,South East Netting Limited,SOU016,Director of Operational Services,Revenue,Supplies And Services
http://www.ons.gov.uk/ons/guide-method/geography/products/names--codes-and-look-ups/names-and-codes-listings/names-and-codes-for-administrative-geography/index.html,Thanet District Council,04/06/2013,338909,410.16,Southern Electric,SEL007,Director of Community Services,Revenue,Premises Related Expenditure
http://www.ons.gov.uk/ons/guide-method/geography/products/names--codes-and-look-ups/names-and-codes-listings/names-and-codes-for-administrative-geography/index.html,Thanet District Council,04/06/2013,338665,372.87,Southern Water,SWA001,Director of Operational Services,Revenue,Premises Related Expenditure
http://www.ons.gov.uk/ons/guide-method/geography/products/names--codes-and-look-ups/names-and-codes-listings/names-and-codes-for-administrative-geography/index.html,Thanet District Council,04/06/2013,338666,387.37,Southern Water,SWA001,Director of Operational Services,Revenue,Premises Related Expenditure
http://www.ons.gov.uk/ons/guide-method/geography/products/names--codes-and-look-ups/names-and-codes-listings/names-and-codes-for-administrative-geography/index.html,Thanet District Council,04/06/2013,338654,335.00,Stand Fast,STA003,Director of Operational Services,Revenue,Premises Related Expenditure
http://www.ons.gov.uk/ons/guide-method/geography/products/names--codes-and-look-ups/names-and-codes-listings/names-and-codes-for-administrative-geography/index.html,Thanet District Council,04/06/2013,338688,448.80,Supplies Team,SUP001,Director of Corporate Services and Transformation,Revenue,Supplies And Services
http://www.ons.gov.uk/ons/guide-method/geography/products/names--codes-and-look-ups/names-and-codes-listings/names-and-codes-for-administrative-geography/index.html,Thanet District Council,04/06/2013,338112,226.90,Swale Shutter & Door Services Ltd,SWA013,Director of Operational Services,Revenue,Supplies And Services
http://www.ons.gov.uk/ons/guide-method/geography/products/names--codes-and-look-ups/names-and-codes-listings/names-and-codes-for-administrative-geography/index.html,Thanet District Council,04/06/2013,338108,369.20,Tacklestore Ltd,TAC004,Director of Operational Services,Revenue,Supplies And Services
http://www.ons.gov.uk/ons/guide-method/geography/products/names--codes-and-look-ups/names-and-codes-listings/names-and-codes-for-administrative-geography/index.html,Thanet District Council,04/06/2013,337660,82000.00,Thanet Dist Citizens Advice Bureau,TDC003,Director of Community Services,Revenue,Supplies And Services
http://www.ons.gov.uk/ons/guide-method/geography/products/names--codes-and-look-ups/names-and-codes-listings/names-and-codes-for-administrative-geography/index.html,Thanet District Council,04/06/2013,338902,560.00,The Bay Guest House,BAY006,Director of Community Services,Revenue,Supplies And Services
http://www.ons.gov.uk/ons/guide-method/geography/products/names--codes-and-look-ups/names-and-codes-listings/names-and-codes-for-administrative-geography/index.html,Thanet District Council,04/06/2013,338954,275.00,The Cats Whiskers Sandwich Bar,CAT004,Director of Operational Services,Revenue,Supplies And Services
http://www.ons.gov.uk/ons/guide-method/geography/products/names--codes-and-look-ups/names-and-codes-listings/names-and-codes-for-administrative-geography/index.html,Thanet District Council,04/06/2013,339116,15000.00,The Dreamland Trust,DRE003,Director of Corporate Services and Transformation,Balance Sheet,Long Term Assets
http://www.ons.gov.uk/ons/guide-method/geography/products/names--codes-and-look-ups/names-and-codes-listings/names-and-codes-for-administrative-geography/index.html,Thanet District Council,04/06/2013,338702,2141.67,The Glenwood Hotel,GLE007,Director of Community Services,Revenue,Supplies And Services
http://www.ons.gov.uk/ons/guide-method/geography/products/names--codes-and-look-ups/names-and-codes-listings/names-and-codes-for-administrative-geography/index.html,Thanet District Council,04/06/2013,338703,1808.33,The Glenwood Hotel,GLE007,Director of Community Services,Revenue,Supplies And Services
http://www.ons.gov.uk/ons/guide-method/geography/products/names--codes-and-look-ups/names-and-codes-listings/names-and-codes-for-administrative-geography/index.html,Thanet District Council,04/06/2013,338461,3867.50,Trowers & Hamlins,TRO001,Director of Corporate Services and Transformation,Balance Sheet,Long Term Assets
http://www.ons.gov.uk/ons/guide-method/geography/products/names--codes-and-look-ups/names-and-codes-listings/names-and-codes-for-administrative-geography/index.html,Thanet District Council,04/06/2013,339114,-49986.75,Trowers & Hamlins,TRO001,Director of Corporate Services and Transformation,Balance Sheet,Long Term Assets
http://www.ons.gov.uk/ons/guide-method/geography/products/names--codes-and-look-ups/names-and-codes-listings/names-and-codes-for-administrative-geography/index.html,Thanet District Council,04/06/2013,339115,48271.75,Trowers & Hamlins,TRO001,Director of Corporate Services and Transformation,Balance Sheet,Long Term Assets
http://www.ons.gov.uk/ons/guide-method/geography/products/names--codes-and-look-ups/names-and-codes-listings/names-and-codes-for-administrative-geography/index.html,Thanet District Council,04/06/2013,338270,765.00,University College London,UCL001,Director of Community Services,Revenue,Supplies And Services
http://www.ons.gov.uk/ons/guide-method/geography/products/names--codes-and-look-ups/names-and-codes-listings/names-and-codes-for-administrative-geography/index.html,Thanet District Council,04/06/2013,338660,7464.10,Vodafone Limited (Corporate),VOD001,Director of Corporate Services and Transformation,Balance Sheet,Current Assets
http://www.ons.gov.uk/ons/guide-method/geography/products/names--codes-and-look-ups/names-and-codes-listings/names-and-codes-for-administrative-geography/index.html,Thanet District Council,04/06/2013,338723,1250.00,Wyg Env Planning Transport Limited,WYG002,Director of Operational Services,Revenue,Premises Related Expenditure
http://www.ons.gov.uk/ons/guide-method/geography/products/names--codes-and-look-ups/names-and-codes-listings/names-and-codes-for-administrative-geography/index.html,Thanet District Council,04/06/2013,338150,1080.00,Your Leisure Kent Limited,YOU016,Director of Corporate Services and Transformation,Revenue,Premises Related Expenditure
http://www.ons.gov.uk/ons/guide-method/geography/products/names--codes-and-look-ups/names-and-codes-listings/names-and-codes-for-administrative-geography/index.html,Thanet District Council,07/06/2013,339432,1350.00,Nagels Uk Ltd,NAG001,Director of Operational Services,Revenue,Supplies And Services
http://www.ons.gov.uk/ons/guide-method/geography/products/names--codes-and-look-ups/names-and-codes-listings/names-and-codes-for-administrative-geography/index.html,Thanet District Council,07/06/2013,339433,2996.00,Nagels Uk Ltd,NAG001,Director of Operational Services,Revenue,Supplies And Services
http://www.ons.gov.uk/ons/guide-method/geography/products/names--codes-and-look-ups/names-and-codes-listings/names-and-codes-for-administrative-geography/index.html,Thanet District Council,10/06/2013,338671,1023.60,A J Security,AJS002,Director of Operational Services,Revenue,Supplies And Services
http://www.ons.gov.uk/ons/guide-method/geography/products/names--codes-and-look-ups/names-and-codes-listings/names-and-codes-for-administrative-geography/index.html,Thanet District Council,10/06/2013,339019,245.25,Adecco Uk Ltd,ADE005,Director of Corporate Services and Transformation,Revenue,Employees
http://www.ons.gov.uk/ons/guide-method/geography/products/names--codes-and-look-ups/names-and-codes-listings/names-and-codes-for-administrative-geography/index.html,Thanet District Council,10/06/2013,339251,840.00,Advanced Bird & Pest Control Ltd,ADV001,Director of Operational Services,Revenue,Premises Related Expenditure
http://www.ons.gov.uk/ons/guide-method/geography/products/names--codes-and-look-ups/names-and-codes-listings/names-and-codes-for-administrative-geography/index.html,Thanet District Council,10/06/2013,338885,1080.00,Alex Hare Photography,HAR064,Director of Community Services,Revenue,Supplies And Services
http://www.ons.gov.uk/ons/guide-method/geography/products/names--codes-and-look-ups/names-and-codes-listings/names-and-codes-for-administrative-geography/index.html,Thanet District Council,10/06/2013,339424,375.54,Allstar Business Solutions Ltd,ALL038,Director of Operational Services,Revenue,Transport Related Expenditure
http://www.ons.gov.uk/ons/guide-method/geography/products/names--codes-and-look-ups/names-and-codes-listings/names-and-codes-for-administrative-geography/index.html,Thanet District Council,10/06/2013,339017,1150.00,Audit Commission,AUD001,Director of Corporate Services and Transformation,Revenue,Supplies And Services
http://www.ons.gov.uk/ons/guide-method/geography/products/names--codes-and-look-ups/names-and-codes-listings/names-and-codes-for-administrative-geography/index.html,Thanet District Council,10/06/2013,339506,4557.68,Better Beaches Ltd,BET009,Director of Operational Services,Revenue,Supplies And Services
http://www.ons.gov.uk/ons/guide-method/geography/products/names--codes-and-look-ups/names-and-codes-listings/names-and-codes-for-administrative-geography/index.html,Thanet District Council,10/06/2013,338558,5390.00,Blue Sail Consulting Ltd,BLU011,Director of Community Services,Revenue,Supplies And Services
http://www.ons.gov.uk/ons/guide-method/geography/products/names--codes-and-look-ups/names-and-codes-listings/names-and-codes-for-administrative-geography/index.html,Thanet District Council,10/06/2013,338652,1364.00,Bridge Security Cctv Ltd,BRI039,Director of Community Services,Revenue,Supplies And Services
http://www.ons.gov.uk/ons/guide-method/geography/products/names--codes-and-look-ups/names-and-codes-listings/names-and-codes-for-administrative-geography/index.html,Thanet District Council,10/06/2013,338916,2320.50,British Marine Federation,BRI002,Director of Operational Services,Revenue,Supplies And Services
http://www.ons.gov.uk/ons/guide-method/geography/products/names--codes-and-look-ups/names-and-codes-listings/names-and-codes-for-administrative-geography/index.html,Thanet District Council,10/06/2013,338904,279.67,Capt G Tully,TUL001,Director of Operational Services,Revenue,Supplies And Services
http://www.ons.gov.uk/ons/guide-method/geography/products/names--codes-and-look-ups/names-and-codes-listings/names-and-codes-for-administrative-geography/index.html,Thanet District Council,10/06/2013,338624,1331.28,Civica Uk Ltd,CIV003,East Kent Shared Services,Revenue,Supplies And Services
http://www.ons.gov.uk/ons/guide-method/geography/products/names--codes-and-look-ups/names-and-codes-listings/names-and-codes-for-administrative-geography/index.html,Thanet District Council,10/06/2013,338884,1485.00,Clare Maclean-Bell,MAC020,Director of Community Services,Revenue,Supplies And Services
http://www.ons.gov.uk/ons/guide-method/geography/products/names--codes-and-look-ups/names-and-codes-listings/names-and-codes-for-administrative-geography/index.html,Thanet District Council,10/06/2013,339291,12070.00,Connoisseur Renovations,CON037,Director of Corporate Services and Transformation,Balance Sheet,Long Term Assets
http://www.ons.gov.uk/ons/guide-method/geography/products/names--codes-and-look-ups/names-and-codes-listings/names-and-codes-for-administrative-geography/index.html,Thanet District Council,10/06/2013,339414,2270.00,Connoisseur Renovations,CON037,Director of Corporate Services and Transformation,Balance Sheet,Long Term Assets
http://www.ons.gov.uk/ons/guide-method/geography/products/names--codes-and-look-ups/names-and-codes-listings/names-and-codes-for-administrative-geography/index.html,Thanet District Council,10/06/2013,339420,6216.00,D L Clarke Builders Ltd,CLA031,Director of Corporate Services and Transformation,Balance Sheet,Long Term Assets
http://www.ons.gov.uk/ons/guide-method/geography/products/names--codes-and-look-ups/names-and-codes-listings/names-and-codes-for-administrative-geography/index.html,Thanet District Council,10/06/2013,338973,2562.93,Data Integration,DAT006,East Kent Shared Services,Revenue,Supplies And Services
http://www.ons.gov.uk/ons/guide-method/geography/products/names--codes-and-look-ups/names-and-codes-listings/names-and-codes-for-administrative-geography/index.html,Thanet District Council,10/06/2013,339129,1725.00,Dawsonrentals Sweepers,DAW003,Director of Operational Services,Revenue,Transport Related Expenditure
http://www.ons.gov.uk/ons/guide-method/geography/products/names--codes-and-look-ups/names-and-codes-listings/names-and-codes-for-administrative-geography/index.html,Thanet District Council,10/06/2013,339286,5750.00,Dolphin Lifts Kent,DOL003,Director of Corporate Services and Transformation,Balance Sheet,Long Term Assets
http://www.ons.gov.uk/ons/guide-method/geography/products/names--codes-and-look-ups/names-and-codes-listings/names-and-codes-for-administrative-geography/index.html,Thanet District Council,10/06/2013,339296,11180.00,Dolphin Lifts Kent,DOL003,Director of Corporate Services and Transformation,Balance Sheet,Long Term Assets
http://www.ons.gov.uk/ons/guide-method/geography/products/names--codes-and-look-ups/names-and-codes-listings/names-and-codes-for-administrative-geography/index.html,Thanet District Council,10/06/2013,338680,350.00,Dover District Council,DOV001,Director of Community Services,Revenue,Employees
http://www.ons.gov.uk/ons/guide-method/geography/products/names--codes-and-look-ups/names-and-codes-listings/names-and-codes-for-administrative-geography/index.html,Thanet District Council,10/06/2013,338962,2080.97,E Saunders Margate Ltd,SAU001,Director of Community Services,Revenue,Supplies And Services
http://www.ons.gov.uk/ons/guide-method/geography/products/names--codes-and-look-ups/names-and-codes-listings/names-and-codes-for-administrative-geography/index.html,Thanet District Council,10/06/2013,339428,361.76,E Saunders Margate Ltd,SAU001,Director of Corporate Services and Transformation,Balance Sheet,Current Assets
http://www.ons.gov.uk/ons/guide-method/geography/products/names--codes-and-look-ups/names-and-codes-listings/names-and-codes-for-administrative-geography/index.html,Thanet District Council,10/06/2013,339430,657.82,E Saunders Margate Ltd,SAU001,Director of Corporate Services and Transformation,Balance Sheet,Current Assets
http://www.ons.gov.uk/ons/guide-method/geography/products/names--codes-and-look-ups/names-and-codes-listings/names-and-codes-for-administrative-geography/index.html,Thanet District Council,10/06/2013,339431,631.02,E Saunders Margate Ltd,SAU001,Director of Corporate Services and Transformation,Balance Sheet,Current Assets
http://www.ons.gov.uk/ons/guide-method/geography/products/names--codes-and-look-ups/names-and-codes-listings/names-and-codes-for-administrative-geography/index.html,Thanet District Council,10/06/2013,338952,15032.48,Edf Energy 1 Ltd,SEE012,Director of Community Services,Revenue,Premises Related Expenditure
http://www.ons.gov.uk/ons/guide-method/geography/products/names--codes-and-look-ups/names-and-codes-listings/names-and-codes-for-administrative-geography/index.html,Thanet District Council,10/06/2013,339265,282.11,Edf Energy 1 Ltd,SEE012,Director of Operational Services,Revenue,Premises Related Expenditure
http://www.ons.gov.uk/ons/guide-method/geography/products/names--codes-and-look-ups/names-and-codes-listings/names-and-codes-for-administrative-geography/index.html,Thanet District Council,10/06/2013,339268,273.90,Edf Energy 1 Ltd,SEE012,Director of Operational Services,Revenue,Premises Related Expenditure
http://www.ons.gov.uk/ons/guide-method/geography/products/names--codes-and-look-ups/names-and-codes-listings/names-and-codes-for-administrative-geography/index.html,Thanet District Council,10/06/2013,339271,324.29,Edf Energy 1 Ltd,SEE012,Director of Operational Services,Revenue,Premises Related Expenditure
http://www.ons.gov.uk/ons/guide-method/geography/products/names--codes-and-look-ups/names-and-codes-listings/names-and-codes-for-administrative-geography/index.html,Thanet District Council,10/06/2013,338730,75000.00,Ernest Doe & Sons Ltd,ERN003,Director of Corporate Services and Transformation,Balance Sheet,Long Term Assets
http://www.ons.gov.uk/ons/guide-method/geography/products/names--codes-and-look-ups/names-and-codes-listings/names-and-codes-for-administrative-geography/index.html,Thanet District Council,10/06/2013,339284,1452.40,Family Mosaic Housing,FAM001,Director of Corporate Services and Transformation,Balance Sheet,Long Term Assets
http://www.ons.gov.uk/ons/guide-method/geography/products/names--codes-and-look-ups/names-and-codes-listings/names-and-codes-for-administrative-geography/index.html,Thanet District Council,10/06/2013,339285,1228.60,Family Mosaic Housing,FAM001,Director of Corporate Services and Transformation,Balance Sheet,Long Term Assets
http://www.ons.gov.uk/ons/guide-method/geography/products/names--codes-and-look-ups/names-and-codes-listings/names-and-codes-for-administrative-geography/index.html,Thanet District Council,10/06/2013,339287,642.00,Family Mosaic Housing,FAM001,Director of Corporate Services and Transformation,Balance Sheet,Long Term Assets
http://www.ons.gov.uk/ons/guide-method/geography/products/names--codes-and-look-ups/names-and-codes-listings/names-and-codes-for-administrative-geography/index.html,Thanet District Council,10/06/2013,339292,1452.40,Family Mosaic Housing,FAM001,Director of Corporate Services and Transformation,Balance Sheet,Long Term Assets
http://www.ons.gov.uk/ons/guide-method/geography/products/names--codes-and-look-ups/names-and-codes-listings/names-and-codes-for-administrative-geography/index.html,Thanet District Council,10/06/2013,339294,1005.60,Family Mosaic Housing,FAM001,Director of Corporate Services and Transformation,Balance Sheet,Long Term Assets
http://www.ons.gov.uk/ons/guide-method/geography/products/names--codes-and-look-ups/names-and-codes-listings/names-and-codes-for-administrative-geography/index.html,Thanet District Council,10/06/2013,339243,4179.50,Fuel Oils Kent,FUE001,Director of Operational Services,Revenue,Supplies And Services
http://www.ons.gov.uk/ons/guide-method/geography/products/names--codes-and-look-ups/names-and-codes-listings/names-and-codes-for-administrative-geography/index.html,Thanet District Council,10/06/2013,339308,10000.00,G Chittenden,CHI001,Director of Operational Services,Revenue,Premises Related Expenditure
http://www.ons.gov.uk/ons/guide-method/geography/products/names--codes-and-look-ups/names-and-codes-listings/names-and-codes-for-administrative-geography/index.html,Thanet District Council,10/06/2013,339309,10000.00,G Chittenden,CHI001,Director of Operational Services,Revenue,Premises Related Expenditure
http://www.ons.gov.uk/ons/guide-method/geography/products/names--codes-and-look-ups/names-and-codes-listings/names-and-codes-for-administrative-geography/index.html,Thanet District Council,10/06/2013,338953,3212.00,Goddard Hester,GOD003,Director of Community Services,Revenue,Supplies And Services
http://www.ons.gov.uk/ons/guide-method/geography/products/names--codes-and-look-ups/names-and-codes-listings/names-and-codes-for-administrative-geography/index.html,Thanet District Council,10/06/2013,339343,960.00,Goodyear Dunlop Truckforce,GOO018,Director of Operational Services,Revenue,Transport Related Expenditure
http://www.ons.gov.uk/ons/guide-method/geography/products/names--codes-and-look-ups/names-and-codes-listings/names-and-codes-for-administrative-geography/index.html,Thanet District Council,10/06/2013,338691,342.75,Groundsman,GRO022,Director of Operational Services,Revenue,Supplies And Services
http://www.ons.gov.uk/ons/guide-method/geography/products/names--codes-and-look-ups/names-and-codes-listings/names-and-codes-for-administrative-geography/index.html,Thanet District Council,10/06/2013,338625,511.40,Haynes Of Maidstone Ltd,HAY008,Director of Operational Services,Revenue,Supplies And Services
http://www.ons.gov.uk/ons/guide-method/geography/products/names--codes-and-look-ups/names-and-codes-listings/names-and-codes-for-administrative-geography/index.html,Thanet District Council,10/06/2013,338242,2250.00,Hbhc Synergy Ltd,HBH001,Director of Corporate Services and Transformation,Revenue,Supplies And Services
http://www.ons.gov.uk/ons/guide-method/geography/products/names--codes-and-look-ups/names-and-codes-listings/names-and-codes-for-administrative-geography/index.html,Thanet District Council,10/06/2013,338243,750.00,Hbhc Synergy Ltd,HBH001,Director of Corporate Services and Transformation,Revenue,Supplies And Services
http://www.ons.gov.uk/ons/guide-method/geography/products/names--codes-and-look-ups/names-and-codes-listings/names-and-codes-for-administrative-geography/index.html,Thanet District Council,10/06/2013,338244,1750.00,Hbhc Synergy Ltd,HBH001,Director of Corporate Services and Transformation,Revenue,Supplies And Services
http://www.ons.gov.uk/ons/guide-method/geography/products/names--codes-and-look-ups/names-and-codes-listings/names-and-codes-for-administrative-geography/index.html,Thanet District Council,10/06/2013,338913,5544.19,Hr Go Recruitment Ltd,HRG002,Director of Operational Services,Revenue,Employees
http://www.ons.gov.uk/ons/guide-method/geography/products/names--codes-and-look-ups/names-and-codes-listings/names-and-codes-for-administrative-geography/index.html,Thanet District Council,10/06/2013,339258,398.25,Hr Go Recruitment Ltd,HRG002,Director of Operational Services,Revenue,Employees
http://www.ons.gov.uk/ons/guide-method/geography/products/names--codes-and-look-ups/names-and-codes-listings/names-and-codes-for-administrative-geography/index.html,Thanet District Council,10/06/2013,339018,381.69,Insight Direct (Uk) Ltd,INS013,East Kent Shared Services,Revenue,Supplies And Services
http://www.ons.gov.uk/ons/guide-method/geography/products/names--codes-and-look-ups/names-and-codes-listings/names-and-codes-for-administrative-geography/index.html,Thanet District Council,10/06/2013,339236,6780.00,Insight Direct (Uk) Ltd,INS013,Director of Corporate Services and Transformation,Revenue,Supplies And Services
http://www.ons.gov.uk/ons/guide-method/geography/products/names--codes-and-look-ups/names-and-codes-listings/names-and-codes-for-administrative-geography/index.html,Thanet District Council,10/06/2013,339300,723.48,John Gale,GAL001,Director of Corporate Services and Transformation,Balance Sheet,Long Term Assets
http://www.ons.gov.uk/ons/guide-method/geography/products/names--codes-and-look-ups/names-and-codes-listings/names-and-codes-for-administrative-geography/index.html,Thanet District Council,10/06/2013,339411,745.92,John Gale,GAL001,Director of Corporate Services and Transformation,Balance Sheet,Long Term Assets
http://www.ons.gov.uk/ons/guide-method/geography/products/names--codes-and-look-ups/names-and-codes-listings/names-and-codes-for-administrative-geography/index.html,Thanet District Council,10/06/2013,339415,272.40,John Gale,GAL001,Director of Corporate Services and Transformation,Balance Sheet,Long Term Assets
http://www.ons.gov.uk/ons/guide-method/geography/products/names--codes-and-look-ups/names-and-codes-listings/names-and-codes-for-administrative-geography/index.html,Thanet District Council,10/06/2013,339418,662.40,John Gale,GAL001,Director of Corporate Services and Transformation,Balance Sheet,Long Term Assets
http://www.ons.gov.uk/ons/guide-method/geography/products/names--codes-and-look-ups/names-and-codes-listings/names-and-codes-for-administrative-geography/index.html,Thanet District Council,10/06/2013,339240,311.55,Kenhire Limited,KEN042,Director of Operational Services,Revenue,Transport Related Expenditure
http://www.ons.gov.uk/ons/guide-method/geography/products/names--codes-and-look-ups/names-and-codes-listings/names-and-codes-for-administrative-geography/index.html,Thanet District Council,10/06/2013,339303,731.50,Kenhire Limited,KEN042,Director of Operational Services,Revenue,Transport Related Expenditure
http://www.ons.gov.uk/ons/guide-method/geography/products/names--codes-and-look-ups/names-and-codes-listings/names-and-codes-for-administrative-geography/index.html,Thanet District Council,10/06/2013,338655,1437.15,Kent County Council (Kcs),KCC003,Director of Operational Services,Revenue,Premises Related Expenditure
http://www.ons.gov.uk/ons/guide-method/geography/products/names--codes-and-look-ups/names-and-codes-listings/names-and-codes-for-administrative-geography/index.html,Thanet District Council,10/06/2013,338656,1317.09,Kent County Council (Kcs),KCC003,Director of Operational Services,Revenue,Premises Related Expenditure
http://www.ons.gov.uk/ons/guide-method/geography/products/names--codes-and-look-ups/names-and-codes-listings/names-and-codes-for-administrative-geography/index.html,Thanet District Council,10/06/2013,338657,1350.62,Kent County Council (Kcs),KCC003,Director of Operational Services,Revenue,Premises Related Expenditure
http://www.ons.gov.uk/ons/guide-method/geography/products/names--codes-and-look-ups/names-and-codes-listings/names-and-codes-for-administrative-geography/index.html,Thanet District Council,10/06/2013,338658,1591.26,Kent County Council (Kcs),KCC003,Director of Operational Services,Revenue,Premises Related Expenditure
http://www.ons.gov.uk/ons/guide-method/geography/products/names--codes-and-look-ups/names-and-codes-listings/names-and-codes-for-administrative-geography/index.html,Thanet District Council,10/06/2013,338694,-3682.96,Kent County Council (Kcs),KCC003,Director of Operational Services,Revenue,Premises Related Expenditure
http://www.ons.gov.uk/ons/guide-method/geography/products/names--codes-and-look-ups/names-and-codes-listings/names-and-codes-for-administrative-geography/index.html,Thanet District Council,10/06/2013,338695,-11968.67,Kent County Council (Kcs),KCC003,Director of Operational Services,Revenue,Premises Related Expenditure
http://www.ons.gov.uk/ons/guide-method/geography/products/names--codes-and-look-ups/names-and-codes-listings/names-and-codes-for-administrative-geography/index.html,Thanet District Council,10/06/2013,338696,-5843.65,Kent County Council (Kcs),KCC003,Director of Operational Services,Revenue,Premises Related Expenditure
http://www.ons.gov.uk/ons/guide-method/geography/products/names--codes-and-look-ups/names-and-codes-listings/names-and-codes-for-administrative-geography/index.html,Thanet District Council,10/06/2013,338697,3682.96,Kent County Council (Kcs),KCC003,Director of Operational Services,Revenue,Premises Related Expenditure
http://www.ons.gov.uk/ons/guide-method/geography/products/names--codes-and-look-ups/names-and-codes-listings/names-and-codes-for-administrative-geography/index.html,Thanet District Council,10/06/2013,338698,5843.65,Kent County Council (Kcs),KCC003,Director of Operational Services,Revenue,Premises Related Expenditure
http://www.ons.gov.uk/ons/guide-method/geography/products/names--codes-and-look-ups/names-and-codes-listings/names-and-codes-for-administrative-geography/index.html,Thanet District Council,10/06/2013,338699,11968.67,Kent County Council (Kcs),KCC003,Director of Operational Services,Revenue,Premises Related Expenditure
http://www.ons.gov.uk/ons/guide-method/geography/products/names--codes-and-look-ups/names-and-codes-listings/names-and-codes-for-administrative-geography/index.html,Thanet District Council,10/06/2013,338991,1391.21,Kent County Council (Kcs),KCC003,Director of Operational Services,Revenue,Premises Related Expenditure
http://www.ons.gov.uk/ons/guide-method/geography/products/names--codes-and-look-ups/names-and-codes-listings/names-and-codes-for-administrative-geography/index.html,Thanet District Council,10/06/2013,338992,1512.01,Kent County Council (Kcs),KCC003,Director of Operational Services,Revenue,Premises Related Expenditure
http://www.ons.gov.uk/ons/guide-method/geography/products/names--codes-and-look-ups/names-and-codes-listings/names-and-codes-for-administrative-geography/index.html,Thanet District Council,10/06/2013,338993,1425.23,Kent County Council (Kcs),KCC003,Director of Operational Services,Revenue,Premises Related Expenditure
http://www.ons.gov.uk/ons/guide-method/geography/products/names--codes-and-look-ups/names-and-codes-listings/names-and-codes-for-administrative-geography/index.html,Thanet District Council,10/06/2013,338994,-1317.09,Kent County Council (Kcs),KCC003,Director of Operational Services,Revenue,Premises Related Expenditure
http://www.ons.gov.uk/ons/guide-method/geography/products/names--codes-and-look-ups/names-and-codes-listings/names-and-codes-for-administrative-geography/index.html,Thanet District Council,10/06/2013,338995,-1437.15,Kent County Council (Kcs),KCC003,Director of Operational Services,Revenue,Premises Related Expenditure
http://www.ons.gov.uk/ons/guide-method/geography/products/names--codes-and-look-ups/names-and-codes-listings/names-and-codes-for-administrative-geography/index.html,Thanet District Council,10/06/2013,338996,-1350.62,Kent County Council (Kcs),KCC003,Director of Operational Services,Revenue,Premises Related Expenditure
http://www.ons.gov.uk/ons/guide-method/geography/products/names--codes-and-look-ups/names-and-codes-listings/names-and-codes-for-administrative-geography/index.html,Thanet District Council,10/06/2013,339007,1679.73,Kent County Council (Kcs),KCC003,Director of Operational Services,Revenue,Premises Related Expenditure
http://www.ons.gov.uk/ons/guide-method/geography/products/names--codes-and-look-ups/names-and-codes-listings/names-and-codes-for-administrative-geography/index.html,Thanet District Council,10/06/2013,339008,-1591.26,Kent County Council (Kcs),KCC003,Director of Operational Services,Revenue,Premises Related Expenditure
http://www.ons.gov.uk/ons/guide-method/geography/products/names--codes-and-look-ups/names-and-codes-listings/names-and-codes-for-administrative-geography/index.html,Thanet District Council,10/06/2013,339041,32633.18,Kent County Council (Kcs),KCC003,Director of Operational Services,Revenue,Transport Related Expenditure
http://www.ons.gov.uk/ons/guide-method/geography/products/names--codes-and-look-ups/names-and-codes-listings/names-and-codes-for-administrative-geography/index.html,Thanet District Council,10/06/2013,339026,452.50,Knaves Ash Plants,KNA001,Director of Operational Services,Revenue,Supplies And Services
http://www.ons.gov.uk/ons/guide-method/geography/products/names--codes-and-look-ups/names-and-codes-listings/names-and-codes-for-administrative-geography/index.html,Thanet District Council,10/06/2013,339004,675.00,Margate Cricket Club,MCR001,Director of Community Services,Revenue,Supplies And Services
http://www.ons.gov.uk/ons/guide-method/geography/products/names--codes-and-look-ups/names-and-codes-listings/names-and-codes-for-administrative-geography/index.html,Thanet District Council,10/06/2013,338721,51077.31,Molyneux Rose Ltd Cl Acc-I/S M'Gate,MOL002,Director of Operational Services,Revenue,Premises Related Expenditure
http://www.ons.gov.uk/ons/guide-method/geography/products/names--codes-and-look-ups/names-and-codes-listings/names-and-codes-for-administrative-geography/index.html,Thanet District Council,10/06/2013,338722,42559.75,Molyneux Rose Ltd Cl Acc-I/S R'Gate,MOL003,Director of Operational Services,Revenue,Premises Related Expenditure
http://www.ons.gov.uk/ons/guide-method/geography/products/names--codes-and-look-ups/names-and-codes-listings/names-and-codes-for-administrative-geography/index.html,Thanet District Council,10/06/2013,338975,331.59,Morgan Jones Ltd,MOR001,East Kent Shared Services,Revenue,Employees
http://www.ons.gov.uk/ons/guide-method/geography/products/names--codes-and-look-ups/names-and-codes-listings/names-and-codes-for-administrative-geography/index.html,Thanet District Council,10/06/2013,339003,26703.00,N E Murray Marine Contractors,MUR001,Director of Operational Services,Revenue,Third Party Payments
http://www.ons.gov.uk/ons/guide-method/geography/products/names--codes-and-look-ups/names-and-codes-listings/names-and-codes-for-administrative-geography/index.html,Thanet District Council,10/06/2013,339247,56.00,N J P Contractors,NJP001,Director of Community Services,Revenue,Premises Related Expenditure
http://www.ons.gov.uk/ons/guide-method/geography/products/names--codes-and-look-ups/names-and-codes-listings/names-and-codes-for-administrative-geography/index.html,Thanet District Council,10/06/2013,339247,980.00,N J P Contractors,NJP001,Director of Operational Services,Revenue,Premises Related Expenditure
http://www.ons.gov.uk/ons/guide-method/geography/products/names--codes-and-look-ups/names-and-codes-listings/names-and-codes-for-administrative-geography/index.html,Thanet District Council,10/06/2013,338231,287.98,Neopost Ltd,NEO003,Director of Corporate Services and Transformation,Revenue,Supplies And Services
http://www.ons.gov.uk/ons/guide-method/geography/products/names--codes-and-look-ups/names-and-codes-listings/names-and-codes-for-administrative-geography/index.html,Thanet District Council,10/06/2013,338678,318.00,Neopost Ltd,NEO003,Director of Corporate Services and Transformation,Revenue,Supplies And Services
http://www.ons.gov.uk/ons/guide-method/geography/products/names--codes-and-look-ups/names-and-codes-listings/names-and-codes-for-administrative-geography/index.html,Thanet District Council,10/06/2013,339288,6953.00,Northwood Builders,NOR002,Director of Corporate Services and Transformation,Balance Sheet,Long Term Assets
http://www.ons.gov.uk/ons/guide-method/geography/products/names--codes-and-look-ups/names-and-codes-listings/names-and-codes-for-administrative-geography/index.html,Thanet District Council,10/06/2013,339298,6029.00,Northwood Builders,NOR002,Director of Corporate Services and Transformation,Balance Sheet,Long Term Assets
http://www.ons.gov.uk/ons/guide-method/geography/products/names--codes-and-look-ups/names-and-codes-listings/names-and-codes-for-administrative-geography/index.html,Thanet District Council,10/06/2013,338182,11225.63,Ocs Group Uk Ltd T/A Fountains,OCS005,Director of Corporate Services and Transformation,Balance Sheet,Current Assets
http://www.ons.gov.uk/ons/guide-method/geography/products/names--codes-and-look-ups/names-and-codes-listings/names-and-codes-for-administrative-geography/index.html,Thanet District Council,10/06/2013,338564,500.00,P Houghton,HOU005,Director of Community Services,Revenue,Supplies And Services
http://www.ons.gov.uk/ons/guide-method/geography/products/names--codes-and-look-ups/names-and-codes-listings/names-and-codes-for-administrative-geography/index.html,Thanet District Council,10/06/2013,338690,650.00,P R Bolder,BOL004,Director of Operational Services,Revenue,Premises Related Expenditure
http://www.ons.gov.uk/ons/guide-method/geography/products/names--codes-and-look-ups/names-and-codes-listings/names-and-codes-for-administrative-geography/index.html,Thanet District Council,10/06/2013,338958,222.06,Phs Group Plc,PHS001,Director of Operational Services,Revenue,Premises Related Expenditure
http://www.ons.gov.uk/ons/guide-method/geography/products/names--codes-and-look-ups/names-and-codes-listings/names-and-codes-for-administrative-geography/index.html,Thanet District Council,10/06/2013,339000,687.24,Probrand Ltd,PRO012,East Kent Shared Services,Revenue,Supplies And Services
http://www.ons.gov.uk/ons/guide-method/geography/products/names--codes-and-look-ups/names-and-codes-listings/names-and-codes-for-administrative-geography/index.html,Thanet District Council,10/06/2013,338946,300.00,Puls Global Ltd,PUL006,Director of Operational Services,Revenue,Supplies And Services
http://www.ons.gov.uk/ons/guide-method/geography/products/names--codes-and-look-ups/names-and-codes-listings/names-and-codes-for-administrative-geography/index.html,Thanet District Council,10/06/2013,339021,700.00,Ricardo-Aea Limited,RIC028,Director of Corporate Services and Transformation,Revenue,Supplies And Services
http://www.ons.gov.uk/ons/guide-method/geography/products/names--codes-and-look-ups/names-and-codes-listings/names-and-codes-for-administrative-geography/index.html,Thanet District Council,10/06/2013,339020,1055.81,Shepway District Council,SHE001,Director of Operational Services,Revenue,Premises Related Expenditure
http://www.ons.gov.uk/ons/guide-method/geography/products/names--codes-and-look-ups/names-and-codes-listings/names-and-codes-for-administrative-geography/index.html,Thanet District Council,10/06/2013,339117,690.00,Ski And Sail Limited,SKI009,Director of Operational Services,Revenue,Supplies And Services
http://www.ons.gov.uk/ons/guide-method/geography/products/names--codes-and-look-ups/names-and-codes-listings/names-and-codes-for-administrative-geography/index.html,Thanet District Council,10/06/2013,339293,8380.00,South East Building Company Limited,SEB001,Director of Corporate Services and Transformation,Balance Sheet,Long Term Assets
http://www.ons.gov.uk/ons/guide-method/geography/products/names--codes-and-look-ups/names-and-codes-listings/names-and-codes-for-administrative-geography/index.html,Thanet District Council,10/06/2013,339419,5520.00,South East Building Company Limited,SEB001,Director of Corporate Services and Transformation,Balance Sheet,Long Term Assets
http://www.ons.gov.uk/ons/guide-method/geography/products/names--codes-and-look-ups/names-and-codes-listings/names-and-codes-for-administrative-geography/index.html,Thanet District Council,10/06/2013,339290,12085.00,South East Wetrooms Limited,SEW002,Director of Corporate Services and Transformation,Balance Sheet,Long Term Assets
http://www.ons.gov.uk/ons/guide-method/geography/products/names--codes-and-look-ups/names-and-codes-listings/names-and-codes-for-administrative-geography/index.html,Thanet District Council,10/06/2013,338732,794.67,Southern Electric,SEL007,Director of Community Services,Revenue,Premises Related Expenditure
http://www.ons.gov.uk/ons/guide-method/geography/products/names--codes-and-look-ups/names-and-codes-listings/names-and-codes-for-administrative-geography/index.html,Thanet District Council,10/06/2013,338737,1068.85,Southern Electric,SEL007,Director of Operational Services,Revenue,Premises Related Expenditure
http://www.ons.gov.uk/ons/guide-method/geography/products/names--codes-and-look-ups/names-and-codes-listings/names-and-codes-for-administrative-geography/index.html,Thanet District Council,10/06/2013,338739,383.68,Southern Electric,SEL007,Director of Operational Services,Revenue,Premises Related Expenditure
http://www.ons.gov.uk/ons/guide-method/geography/products/names--codes-and-look-ups/names-and-codes-listings/names-and-codes-for-administrative-geography/index.html,Thanet District Council,10/06/2013,338748,568.93,Southern Electric,SEL007,Director of Community Services,Revenue,Premises Related Expenditure
http://www.ons.gov.uk/ons/guide-method/geography/products/names--codes-and-look-ups/names-and-codes-listings/names-and-codes-for-administrative-geography/index.html,Thanet District Council,10/06/2013,338910,1089.36,Southern Electric,SEL007,Director of Operational Services,Revenue,Premises Related Expenditure
http://www.ons.gov.uk/ons/guide-method/geography/products/names--codes-and-look-ups/names-and-codes-listings/names-and-codes-for-administrative-geography/index.html,Thanet District Council,10/06/2013,338988,1073.41,Southern Electric,SEL007,Director of Community Services,Revenue,Premises Related Expenditure
http://www.ons.gov.uk/ons/guide-method/geography/products/names--codes-and-look-ups/names-and-codes-listings/names-and-codes-for-administrative-geography/index.html,Thanet District Council,10/06/2013,339059,1033.90,Southern Electric,SEL007,Director of Operational Services,Revenue,Premises Related Expenditure
http://www.ons.gov.uk/ons/guide-method/geography/products/names--codes-and-look-ups/names-and-codes-listings/names-and-codes-for-administrative-geography/index.html,Thanet District Council,10/06/2013,339060,1764.37,Southern Electric,SEL007,Director of Community Services,Revenue,Premises Related Expenditure
http://www.ons.gov.uk/ons/guide-method/geography/products/names--codes-and-look-ups/names-and-codes-listings/names-and-codes-for-administrative-geography/index.html,Thanet District Council,10/06/2013,339062,1758.31,Southern Electric,SEL007,Director of Community Services,Revenue,Premises Related Expenditure
http://www.ons.gov.uk/ons/guide-method/geography/products/names--codes-and-look-ups/names-and-codes-listings/names-and-codes-for-administrative-geography/index.html,Thanet District Council,10/06/2013,339063,8059.29,Southern Electric,SEL007,Director of Community Services,Revenue,Premises Related Expenditure
http://www.ons.gov.uk/ons/guide-method/geography/products/names--codes-and-look-ups/names-and-codes-listings/names-and-codes-for-administrative-geography/index.html,Thanet District Council,10/06/2013,339071,410.87,Southern Electric,SEL007,Director of Corporate Services and Transformation,Revenue,Premises Related Expenditure
http://www.ons.gov.uk/ons/guide-method/geography/products/names--codes-and-look-ups/names-and-codes-listings/names-and-codes-for-administrative-geography/index.html,Thanet District Council,10/06/2013,339087,2419.87,Southern Electric,SEL007,Director of Operational Services,Revenue,Premises Related Expenditure
http://www.ons.gov.uk/ons/guide-method/geography/products/names--codes-and-look-ups/names-and-codes-listings/names-and-codes-for-administrative-geography/index.html,Thanet District Council,10/06/2013,339090,1778.12,Southern Electric,SEL007,Director of Operational Services,Revenue,Premises Related Expenditure
http://www.ons.gov.uk/ons/guide-method/geography/products/names--codes-and-look-ups/names-and-codes-listings/names-and-codes-for-administrative-geography/index.html,Thanet District Council,10/06/2013,339093,15891.57,Southern Electric,SEL007,Director of Community Services,Revenue,Premises Related Expenditure
http://www.ons.gov.uk/ons/guide-method/geography/products/names--codes-and-look-ups/names-and-codes-listings/names-and-codes-for-administrative-geography/index.html,Thanet District Council,10/06/2013,339065,1932.40,Southern Water,SWA001,Director of Operational Services,Revenue,Premises Related Expenditure
http://www.ons.gov.uk/ons/guide-method/geography/products/names--codes-and-look-ups/names-and-codes-listings/names-and-codes-for-administrative-geography/index.html,Thanet District Council,10/06/2013,338670,316.20,Spaldings (Uk) Ltd,SPA006,Director of Operational Services,Revenue,Supplies And Services
http://www.ons.gov.uk/ons/guide-method/geography/products/names--codes-and-look-ups/names-and-codes-listings/names-and-codes-for-administrative-geography/index.html,Thanet District Council,10/06/2013,339385,14480.00,The Pipeline,PIP002,Director of Operational Services,Revenue,Supplies And Services
http://www.ons.gov.uk/ons/guide-method/geography/products/names--codes-and-look-ups/names-and-codes-listings/names-and-codes-for-administrative-geography/index.html,Thanet District Council,10/06/2013,339121,9816.00,Thintech Ltd,THI009,Director of Corporate Services and Transformation,Revenue,Supplies And Services
http://www.ons.gov.uk/ons/guide-method/geography/products/names--codes-and-look-ups/names-and-codes-listings/names-and-codes-for-administrative-geography/index.html,Thanet District Council,10/06/2013,339421,342.00,Thomson Snell & Passmore,THO016,Director of Community Services,Revenue,Supplies And Services
http://www.ons.gov.uk/ons/guide-method/geography/products/names--codes-and-look-ups/names-and-codes-listings/names-and-codes-for-administrative-geography/index.html,Thanet District Council,10/06/2013,339412,5487.00,Trueden Disability Care Ltd,TRU011,Director of Corporate Services and Transformation,Balance Sheet,Long Term Assets
http://www.ons.gov.uk/ons/guide-method/geography/products/names--codes-and-look-ups/names-and-codes-listings/names-and-codes-for-administrative-geography/index.html,Thanet District Council,10/06/2013,339417,1487.00,Trueden Disability Care Ltd,TRU011,Director of Corporate Services and Transformation,Balance Sheet,Long Term Assets
http://www.ons.gov.uk/ons/guide-method/geography/products/names--codes-and-look-ups/names-and-codes-listings/names-and-codes-for-administrative-geography/index.html,Thanet District Council,10/06/2013,339130,658.75,Westbury Industrial Supplies Ltd,WES042,Director of Operational Services,Revenue,Supplies And Services
http://www.ons.gov.uk/ons/guide-method/geography/products/names--codes-and-look-ups/names-and-codes-listings/names-and-codes-for-administrative-geography/index.html,Thanet District Council,10/06/2013,338644,250.00,Xpress Software Solutions Ltd,XPR002,Director of Corporate Services and Transformation,Revenue,Supplies And Services
http://www.ons.gov.uk/ons/guide-method/geography/products/names--codes-and-look-ups/names-and-codes-listings/names-and-codes-for-administrative-geography/index.html,Thanet District Council,10/06/2013,339504,90.00,Xpress Software Solutions Ltd,XPR002,Director of Corporate Services and Transformation,Revenue,Supplies And Services
http://www.ons.gov.uk/ons/guide-method/geography/products/names--codes-and-look-ups/names-and-codes-listings/names-and-codes-for-administrative-geography/index.html,Thanet District Council,12/06/2013,339502,1863.00,Abgem Llp,ABG001,Director of Operational Services,Revenue,Supplies And Services
http://www.ons.gov.uk/ons/guide-method/geography/products/names--codes-and-look-ups/names-and-codes-listings/names-and-codes-for-administrative-geography/index.html,Thanet District Council,12/06/2013,339242,304.92,Aspli Safety Limited,ASP005,Director of Operational Services,Revenue,Supplies And Services
http://www.ons.gov.uk/ons/guide-method/geography/products/names--codes-and-look-ups/names-and-codes-listings/names-and-codes-for-administrative-geography/index.html,Thanet District Council,12/06/2013,338674,350.00,Canterbury City Council,CAN004,Director of Operational Services,Revenue,Premises Related Expenditure
http://www.ons.gov.uk/ons/guide-method/geography/products/names--codes-and-look-ups/names-and-codes-listings/names-and-codes-for-administrative-geography/index.html,Thanet District Council,12/06/2013,338999,618.08,Channel Commercials Plc,CCO001,Director of Operational Services,Revenue,Transport Related Expenditure
http://www.ons.gov.uk/ons/guide-method/geography/products/names--codes-and-look-ups/names-and-codes-listings/names-and-codes-for-administrative-geography/index.html,Thanet District Council,12/06/2013,338989,828.12,Clague Llp,CLA038,Director of Community Services,Revenue,Supplies And Services
http://www.ons.gov.uk/ons/guide-method/geography/products/names--codes-and-look-ups/names-and-codes-listings/names-and-codes-for-administrative-geography/index.html,Thanet District Council,12/06/2013,339305,484.56,Cobalt Telephone Technologies Ltd,COB002,Director of Operational Services,Revenue,Supplies And Services
http://www.ons.gov.uk/ons/guide-method/geography/products/names--codes-and-look-ups/names-and-codes-listings/names-and-codes-for-administrative-geography/index.html,Thanet District Council,12/06/2013,339389,650.00,Ctre For Corporate Learning Limited,CEN016,Director of Corporate Services and Transformation,Revenue,Employees
http://www.ons.gov.uk/ons/guide-method/geography/products/names--codes-and-look-ups/names-and-codes-listings/names-and-codes-for-administrative-geography/index.html,Thanet District Council,12/06/2013,339122,651.94,Dennis Eagle Ltd,DEN005,Director of Operational Services,Revenue,Transport Related Expenditure
http://www.ons.gov.uk/ons/guide-method/geography/products/names--codes-and-look-ups/names-and-codes-listings/names-and-codes-for-administrative-geography/index.html,Thanet District Council,12/06/2013,339342,1012.00,Disclosure And Barring Service,DIS017,Director of Corporate Services and Transformation,Revenue,Supplies And Services
http://www.ons.gov.uk/ons/guide-method/geography/products/names--codes-and-look-ups/names-and-codes-listings/names-and-codes-for-administrative-geography/index.html,Thanet District Council,12/06/2013,338972,1424.00,Dover District Council,DOV001,East Kent Shared Services,Revenue,Employees
http://www.ons.gov.uk/ons/guide-method/geography/products/names--codes-and-look-ups/names-and-codes-listings/names-and-codes-for-administrative-geography/index.html,Thanet District Council,12/06/2013,339438,14790.40,Dover District Council,DOV001,Director of Corporate Services and Transformation,Revenue,Supplies And Services
http://www.ons.gov.uk/ons/guide-method/geography/products/names--codes-and-look-ups/names-and-codes-listings/names-and-codes-for-administrative-geography/index.html,Thanet District Council,12/06/2013,339645,4481.98,Future-Tech Sci Ltd,FUT001,Director of Operational Services,Revenue,Premises Related Expenditure
http://www.ons.gov.uk/ons/guide-method/geography/products/names--codes-and-look-ups/names-and-codes-listings/names-and-codes-for-administrative-geography/index.html,Thanet District Council,12/06/2013,339514,1000.00,Hawley Square Residents Assoc,HAW005,Director of Community Services,Revenue,Supplies And Services
http://www.ons.gov.uk/ons/guide-method/geography/products/names--codes-and-look-ups/names-and-codes-listings/names-and-codes-for-administrative-geography/index.html,Thanet District Council,12/06/2013,339036,240.63,Heidelberg Graphic Equipment Ltd,HEI002,Director of Corporate Services and Transformation,Revenue,Supplies And Services
http://www.ons.gov.uk/ons/guide-method/geography/products/names--codes-and-look-ups/names-and-codes-listings/names-and-codes-for-administrative-geography/index.html,Thanet District Council,12/06/2013,338883,1000.00,Hem Des Llp,HEM007,Director of Corporate Services and Transformation,Balance Sheet,Long Term Assets
http://www.ons.gov.uk/ons/guide-method/geography/products/names--codes-and-look-ups/names-and-codes-listings/names-and-codes-for-administrative-geography/index.html,Thanet District Council,12/06/2013,338912,4904.80,Hr Go Recruitment Ltd,HRG002,Director of Operational Services,Revenue,Employees
http://www.ons.gov.uk/ons/guide-method/geography/products/names--codes-and-look-ups/names-and-codes-listings/names-and-codes-for-administrative-geography/index.html,Thanet District Council,12/06/2013,338923,-457.49,Hr Go Recruitment Ltd,HRG002,Director of Operational Services,Revenue,Employees
http://www.ons.gov.uk/ons/guide-method/geography/products/names--codes-and-look-ups/names-and-codes-listings/names-and-codes-for-administrative-geography/index.html,Thanet District Council,12/06/2013,339255,6093.33,Hr Go Recruitment Ltd,HRG002,Director of Operational Services,Revenue,Employees
http://www.ons.gov.uk/ons/guide-method/geography/products/names--codes-and-look-ups/names-and-codes-listings/names-and-codes-for-administrative-geography/index.html,Thanet District Council,12/06/2013,339256,5390.00,Hr Go Recruitment Ltd,HRG002,Director of Operational Services,Revenue,Employees
http://www.ons.gov.uk/ons/guide-method/geography/products/names--codes-and-look-ups/names-and-codes-listings/names-and-codes-for-administrative-geography/index.html,Thanet District Council,12/06/2013,339259,-388.50,Hr Go Recruitment Ltd,HRG002,Director of Operational Services,Revenue,Employees
http://www.ons.gov.uk/ons/guide-method/geography/products/names--codes-and-look-ups/names-and-codes-listings/names-and-codes-for-administrative-geography/index.html,Thanet District Council,12/06/2013,339327,500.00,Hse Training Ltd,HSE002,Director of Operational Services,Revenue,Supplies And Services
http://www.ons.gov.uk/ons/guide-method/geography/products/names--codes-and-look-ups/names-and-codes-listings/names-and-codes-for-administrative-geography/index.html,Thanet District Council,12/06/2013,339401,20696.74,Imperial Civil Enforcement Sols Ltd,IMP008,Director of Operational Services,Revenue,Supplies And Services
http://www.ons.gov.uk/ons/guide-method/geography/products/names--codes-and-look-ups/names-and-codes-listings/names-and-codes-for-administrative-geography/index.html,Thanet District Council,12/06/2013,338727,221.73,Jewson Ltd,JEW001,Director of Operational Services,Revenue,Supplies And Services
http://www.ons.gov.uk/ons/guide-method/geography/products/names--codes-and-look-ups/names-and-codes-listings/names-and-codes-for-administrative-geography/index.html,Thanet District Council,12/06/2013,338944,300.00,Joanna Willis,WIL065,Director of Community Services,Revenue,Supplies And Services
http://www.ons.gov.uk/ons/guide-method/geography/products/names--codes-and-look-ups/names-and-codes-listings/names-and-codes-for-administrative-geography/index.html,Thanet District Council,12/06/2013,339392,520.00,Jump It Recruitment Solutions Ltd,JUM001,East Kent Shared Services,Revenue,Employees
http://www.ons.gov.uk/ons/guide-method/geography/products/names--codes-and-look-ups/names-and-codes-listings/names-and-codes-for-administrative-geography/index.html,Thanet District Council,12/06/2013,338935,895.00,Keith Tait,TAI001,Director of Operational Services,Revenue,Premises Related Expenditure
http://www.ons.gov.uk/ons/guide-method/geography/products/names--codes-and-look-ups/names-and-codes-listings/names-and-codes-for-administrative-geography/index.html,Thanet District Council,12/06/2013,339378,1300.00,Locata (Housing Services) Ltd,LOC015,Director of Community Services,Revenue,Supplies And Services
http://www.ons.gov.uk/ons/guide-method/geography/products/names--codes-and-look-ups/names-and-codes-listings/names-and-codes-for-administrative-geography/index.html,Thanet District Council,12/06/2013,339513,500.00,Margate Civic Society,MCI004,Director of Community Services,Revenue,Supplies And Services
http://www.ons.gov.uk/ons/guide-method/geography/products/names--codes-and-look-ups/names-and-codes-listings/names-and-codes-for-administrative-geography/index.html,Thanet District Council,12/06/2013,339515,3000.00,Margate Jazz Scene,MJA001,Director of Community Services,Revenue,Supplies And Services
http://www.ons.gov.uk/ons/guide-method/geography/products/names--codes-and-look-ups/names-and-codes-listings/names-and-codes-for-administrative-geography/index.html,Thanet District Council,12/06/2013,339516,750.00,Margate Yacht Club,MYC001,Director of Community Services,Revenue,Supplies And Services
http://www.ons.gov.uk/ons/guide-method/geography/products/names--codes-and-look-ups/names-and-codes-listings/names-and-codes-for-administrative-geography/index.html,Thanet District Council,12/06/2013,338198,300.00,Maxwells Grounds Maintenance Ltd,MAX002,Director of Operational Services,Revenue,Premises Related Expenditure
http://www.ons.gov.uk/ons/guide-method/geography/products/names--codes-and-look-ups/names-and-codes-listings/names-and-codes-for-administrative-geography/index.html,Thanet District Council,12/06/2013,339295,1358.50,Michael Page Finance,PAG008,Director of Corporate Services and Transformation,Revenue,Employees
http://www.ons.gov.uk/ons/guide-method/geography/products/names--codes-and-look-ups/names-and-codes-listings/names-and-codes-for-administrative-geography/index.html,Thanet District Council,12/06/2013,338974,417.38,Morgan Jones Ltd,MOR001,Director of Corporate Services and Transformation,Revenue,Employees
http://www.ons.gov.uk/ons/guide-method/geography/products/names--codes-and-look-ups/names-and-codes-listings/names-and-codes-for-administrative-geography/index.html,Thanet District Council,12/06/2013,339399,464.63,Morgan Jones Ltd,MOR001,Director of Corporate Services and Transformation,Revenue,Employees
http://www.ons.gov.uk/ons/guide-method/geography/products/names--codes-and-look-ups/names-and-codes-listings/names-and-codes-for-administrative-geography/index.html,Thanet District Council,12/06/2013,339400,442.12,Morgan Jones Ltd,MOR001,East Kent Shared Services,Revenue,Employees
http://www.ons.gov.uk/ons/guide-method/geography/products/names--codes-and-look-ups/names-and-codes-listings/names-and-codes-for-administrative-geography/index.html,Thanet District Council,12/06/2013,339123,646.30,National Express Ltd,NAT010,Director of Community Services,Revenue,Supplies And Services
http://www.ons.gov.uk/ons/guide-method/geography/products/names--codes-and-look-ups/names-and-codes-listings/names-and-codes-for-administrative-geography/index.html,Thanet District Council,12/06/2013,339404,5272.35,National Express Ltd,NAT010,Director of Community Services,Revenue,Supplies And Services
http://www.ons.gov.uk/ons/guide-method/geography/products/names--codes-and-look-ups/names-and-codes-listings/names-and-codes-for-administrative-geography/index.html,Thanet District Council,12/06/2013,339302,550.00,Paul Amos,AMO002,Director of Operational Services,Revenue,Premises Related Expenditure
http://www.ons.gov.uk/ons/guide-method/geography/products/names--codes-and-look-ups/names-and-codes-listings/names-and-codes-for-administrative-geography/index.html,Thanet District Council,12/06/2013,339023,41639.16,Profile Security Services Limited,PRO018,Director of Operational Services,Revenue,Supplies And Services
http://www.ons.gov.uk/ons/guide-method/geography/products/names--codes-and-look-ups/names-and-codes-listings/names-and-codes-for-administrative-geography/index.html,Thanet District Council,12/06/2013,338955,805.00,R Cannon,CAN007,Director of Operational Services,Revenue,Premises Related Expenditure
http://www.ons.gov.uk/ons/guide-method/geography/products/names--codes-and-look-ups/names-and-codes-listings/names-and-codes-for-administrative-geography/index.html,Thanet District Council,12/06/2013,338956,752.50,R Cannon,CAN007,Director of Operational Services,Revenue,Premises Related Expenditure
http://www.ons.gov.uk/ons/guide-method/geography/products/names--codes-and-look-ups/names-and-codes-listings/names-and-codes-for-administrative-geography/index.html,Thanet District Council,12/06/2013,339297,1300.00,Randomstorm Ltd,RAN005,East Kent Shared Services,Revenue,Supplies And Services
http://www.ons.gov.uk/ons/guide-method/geography/products/names--codes-and-look-ups/names-and-codes-listings/names-and-codes-for-administrative-geography/index.html,Thanet District Council,12/06/2013,338917,4651.33,Royal Mail,ROY004,Director of Corporate Services and Transformation,Revenue,Supplies And Services
http://www.ons.gov.uk/ons/guide-method/geography/products/names--codes-and-look-ups/names-and-codes-listings/names-and-codes-for-administrative-geography/index.html,Thanet District Council,12/06/2013,339250,2218.15,Royal Mail,ROY004,Director of Corporate Services and Transformation,Revenue,Supplies And Services
http://www.ons.gov.uk/ons/guide-method/geography/products/names--codes-and-look-ups/names-and-codes-listings/names-and-codes-for-administrative-geography/index.html,Thanet District Council,12/06/2013,338110,288.40,Sitexorbis Ltd,SIT007,Director of Community Services,Revenue,Supplies And Services
http://www.ons.gov.uk/ons/guide-method/geography/products/names--codes-and-look-ups/names-and-codes-listings/names-and-codes-for-administrative-geography/index.html,Thanet District Council,12/06/2013,339441,898.54,Sparshatts Of Kent Ltd,SPA008,Director of Operational Services,Revenue,Transport Related Expenditure
http://www.ons.gov.uk/ons/guide-method/geography/products/names--codes-and-look-ups/names-and-codes-listings/names-and-codes-for-administrative-geography/index.html,Thanet District Council,12/06/2013,339463,906.87,Sparshatts Of Kent Ltd,SPA008,Director of Operational Services,Revenue,Transport Related Expenditure
http://www.ons.gov.uk/ons/guide-method/geography/products/names--codes-and-look-ups/names-and-codes-listings/names-and-codes-for-administrative-geography/index.html,Thanet District Council,12/06/2013,337780,24.34,Supplies Team,SUP001,Director of Community Services,Revenue,Supplies And Services
http://www.ons.gov.uk/ons/guide-method/geography/products/names--codes-and-look-ups/names-and-codes-listings/names-and-codes-for-administrative-geography/index.html,Thanet District Council,12/06/2013,337780,366.10,Supplies Team,SUP001,Director of Operational Services,Revenue,Supplies And Services
http://www.ons.gov.uk/ons/guide-method/geography/products/names--codes-and-look-ups/names-and-codes-listings/names-and-codes-for-administrative-geography/index.html,Thanet District Council,12/06/2013,339274,336.00,Supplies Team,SUP001,Director of Community Services,Revenue,Supplies And Services
http://www.ons.gov.uk/ons/guide-method/geography/products/names--codes-and-look-ups/names-and-codes-listings/names-and-codes-for-administrative-geography/index.html,Thanet District Council,12/06/2013,339387,448.80,Supplies Team,SUP001,Director of Corporate Services and Transformation,Revenue,Supplies And Services
http://www.ons.gov.uk/ons/guide-method/geography/products/names--codes-and-look-ups/names-and-codes-listings/names-and-codes-for-administrative-geography/index.html,Thanet District Council,12/06/2013,339670,14.30,Supplies Team,SUP001,Director of Community Services,Revenue,Supplies And Services
http://www.ons.gov.uk/ons/guide-method/geography/products/names--codes-and-look-ups/names-and-codes-listings/names-and-codes-for-administrative-geography/index.html,Thanet District Council,12/06/2013,339252,1245.83,The Glenwood Hotel,GLE007,Director of Community Services,Revenue,Supplies And Services
http://www.ons.gov.uk/ons/guide-method/geography/products/names--codes-and-look-ups/names-and-codes-listings/names-and-codes-for-administrative-geography/index.html,Thanet District Council,12/06/2013,338109,17220.36,Uplands Engineering Ltd,UPL001,Director of Operational Services,Revenue,Premises Related Expenditure
http://www.ons.gov.uk/ons/guide-method/geography/products/names--codes-and-look-ups/names-and-codes-listings/names-and-codes-for-administrative-geography/index.html,Thanet District Council,12/06/2013,339113,918.66,Uplands Engineering Ltd,UPL001,Director of Corporate Services and Transformation,Balance Sheet,Current Assets
http://www.ons.gov.uk/ons/guide-method/geography/products/names--codes-and-look-ups/names-and-codes-listings/names-and-codes-for-administrative-geography/index.html,Thanet District Council,12/06/2013,339313,6300.00,Vector Resourcing Ltd,VEC001,East Kent Shared Services,Revenue,Employees
http://www.ons.gov.uk/ons/guide-method/geography/products/names--codes-and-look-ups/names-and-codes-listings/names-and-codes-for-administrative-geography/index.html,Thanet District Council,12/06/2013,338202,266.31,Viridor Waste Management Ltd,VIR003,Director of Operational Services,Revenue,Premises Related Expenditure
http://www.ons.gov.uk/ons/guide-method/geography/products/names--codes-and-look-ups/names-and-codes-listings/names-and-codes-for-administrative-geography/index.html,Thanet District Council,12/06/2013,338945,2880.00,Wilks Head & Eve,WIL028,Director of Corporate Services and Transformation,Revenue,Supplies And Services
http://www.ons.gov.uk/ons/guide-method/geography/products/names--codes-and-look-ups/names-and-codes-listings/names-and-codes-for-administrative-geography/index.html,Thanet District Council,17/06/2013,339967,456.16,E.On,EON001,Director of Community Services,Revenue,Premises Related Expenditure
http://www.ons.gov.uk/ons/guide-method/geography/products/names--codes-and-look-ups/names-and-codes-listings/names-and-codes-for-administrative-geography/index.html,Thanet District Council,18/06/2013,339249,484.00,All Access Ltd,ALL031,Director of Corporate Services and Transformation,Balance Sheet,Current Assets
http://www.ons.gov.uk/ons/guide-method/geography/products/names--codes-and-look-ups/names-and-codes-listings/names-and-codes-for-administrative-geography/index.html,Thanet District Council,18/06/2013,340126,311.73,Allstar Business Solutions Ltd,ALL038,Director of Operational Services,Revenue,Transport Related Expenditure
http://www.ons.gov.uk/ons/guide-method/geography/products/names--codes-and-look-ups/names-and-codes-listings/names-and-codes-for-administrative-geography/index.html,Thanet District Council,18/06/2013,339681,590.00,Andy Morris,MOR028,Director of Community Services,Revenue,Supplies And Services
http://www.ons.gov.uk/ons/guide-method/geography/products/names--codes-and-look-ups/names-and-codes-listings/names-and-codes-for-administrative-geography/index.html,Thanet District Council,18/06/2013,340005,4750.00,Ascendit Lifts Ltd,ASC001,Director of Corporate Services and Transformation,Balance Sheet,Long Term Assets
http://www.ons.gov.uk/ons/guide-method/geography/products/names--codes-and-look-ups/names-and-codes-listings/names-and-codes-for-administrative-geography/index.html,Thanet District Council,18/06/2013,340026,11705.00,Ascendit Lifts Ltd,ASC001,Director of Corporate Services and Transformation,Balance Sheet,Long Term Assets
http://www.ons.gov.uk/ons/guide-method/geography/products/names--codes-and-look-ups/names-and-codes-listings/names-and-codes-for-administrative-geography/index.html,Thanet District Council,18/06/2013,340054,4557.68,Better Beaches Ltd,BET009,Director of Operational Services,Revenue,Supplies And Services
http://www.ons.gov.uk/ons/guide-method/geography/products/names--codes-and-look-ups/names-and-codes-listings/names-and-codes-for-administrative-geography/index.html,Thanet District Council,18/06/2013,339466,1392.00,Blackburns Funeral Service,BLA002,Director of Corporate Services and Transformation,Revenue,Supplies And Services
http://www.ons.gov.uk/ons/guide-method/geography/products/names--codes-and-look-ups/names-and-codes-listings/names-and-codes-for-administrative-geography/index.html,Thanet District Council,18/06/2013,340218,1372.00,Blackburns Funeral Service,BLA002,Director of Corporate Services and Transformation,Revenue,Supplies And Services
http://www.ons.gov.uk/ons/guide-method/geography/products/names--codes-and-look-ups/names-and-codes-listings/names-and-codes-for-administrative-geography/index.html,Thanet District Council,18/06/2013,339715,326.10,Blackhurst Wade,BLA004,Director of Operational Services,Revenue,Transport Related Expenditure
http://www.ons.gov.uk/ons/guide-method/geography/products/names--codes-and-look-ups/names-and-codes-listings/names-and-codes-for-administrative-geography/index.html,Thanet District Council,18/06/2013,340004,21625.00,Bramling Construction Ltd,BRA020,Director of Corporate Services and Transformation,Balance Sheet,Long Term Assets
http://www.ons.gov.uk/ons/guide-method/geography/products/names--codes-and-look-ups/names-and-codes-listings/names-and-codes-for-administrative-geography/index.html,Thanet District Council,18/06/2013,339762,1994.70,Bridge Security Cctv Ltd,BRI039,Director of Operational Services,Revenue,Supplies And Services
http://www.ons.gov.uk/ons/guide-method/geography/products/names--codes-and-look-ups/names-and-codes-listings/names-and-codes-for-administrative-geography/index.html,Thanet District Council,18/06/2013,339764,1680.00,Bridge Security Cctv Ltd,BRI039,Director of Operational Services,Revenue,Supplies And Services
http://www.ons.gov.uk/ons/guide-method/geography/products/names--codes-and-look-ups/names-and-codes-listings/names-and-codes-for-administrative-geography/index.html,Thanet District Council,18/06/2013,340115,30000.00,Broadstairs & St Peters Town Council,BRO005,Director of Community Services,Revenue,Supplies And Services
http://www.ons.gov.uk/ons/guide-method/geography/products/names--codes-and-look-ups/names-and-codes-listings/names-and-codes-for-administrative-geography/index.html,Thanet District Council,18/06/2013,339661,9331.96,Bruges Nursery,BRU004,Director of Operational Services,Revenue,Supplies And Services
http://www.ons.gov.uk/ons/guide-method/geography/products/names--codes-and-look-ups/names-and-codes-listings/names-and-codes-for-administrative-geography/index.html,Thanet District Council,18/06/2013,338623,10364.01,Canterbury Christ Church University,CAN006,Director of Operational Services,Revenue,Premises Related Expenditure
http://www.ons.gov.uk/ons/guide-method/geography/products/names--codes-and-look-ups/names-and-codes-listings/names-and-codes-for-administrative-geography/index.html,Thanet District Council,18/06/2013,340210,1827.55,Canterbury Christ Church University,CAN006,Director of Operational Services,Revenue,Premises Related Expenditure
http://www.ons.gov.uk/ons/guide-method/geography/products/names--codes-and-look-ups/names-and-codes-listings/names-and-codes-for-administrative-geography/index.html,Thanet District Council,18/06/2013,339332,8535.00,Capita Business Services Ltd,CAP001,Director of Corporate Services and Transformation,Revenue,Supplies And Services
http://www.ons.gov.uk/ons/guide-method/geography/products/names--codes-and-look-ups/names-and-codes-listings/names-and-codes-for-administrative-geography/index.html,Thanet District Council,18/06/2013,340121,399.00,Capita Business Services Ltd,CAP001,Director of Corporate Services and Transformation,Revenue,Supplies And Services
http://www.ons.gov.uk/ons/guide-method/geography/products/names--codes-and-look-ups/names-and-codes-listings/names-and-codes-for-administrative-geography/index.html,Thanet District Council,18/06/2013,339665,230.00,Chatterbox Ltd,CHA006,East Kent Shared Services,Revenue,Supplies And Services
http://www.ons.gov.uk/ons/guide-method/geography/products/names--codes-and-look-ups/names-and-codes-listings/names-and-codes-for-administrative-geography/index.html,Thanet District Council,18/06/2013,339867,4462.94,Civica Uk Ltd,CIV003,East Kent Shared Services,Revenue,Supplies And Services
http://www.ons.gov.uk/ons/guide-method/geography/products/names--codes-and-look-ups/names-and-codes-listings/names-and-codes-for-administrative-geography/index.html,Thanet District Council,18/06/2013,339868,4462.94,Civica Uk Ltd,CIV003,East Kent Shared Services,Revenue,Supplies And Services
http://www.ons.gov.uk/ons/guide-method/geography/products/names--codes-and-look-ups/names-and-codes-listings/names-and-codes-for-administrative-geography/index.html,Thanet District Council,18/06/2013,339719,1537.85,Clear Picture Services Limited,CLE015,Director of Corporate Services and Transformation,Balance Sheet,Current Assets
http://www.ons.gov.uk/ons/guide-method/geography/products/names--codes-and-look-ups/names-and-codes-listings/names-and-codes-for-administrative-geography/index.html,Thanet District Council,18/06/2013,339720,1496.28,Clear Picture Services Limited,CLE015,Director of Corporate Services and Transformation,Balance Sheet,Current Assets
http://www.ons.gov.uk/ons/guide-method/geography/products/names--codes-and-look-ups/names-and-codes-listings/names-and-codes-for-administrative-geography/index.html,Thanet District Council,18/06/2013,339531,707.90,Cobalt Telephone Technologies Ltd,COB002,Director of Operational Services,Revenue,Supplies And Services
http://www.ons.gov.uk/ons/guide-method/geography/products/names--codes-and-look-ups/names-and-codes-listings/names-and-codes-for-administrative-geography/index.html,Thanet District Council,18/06/2013,340012,7131.00,Connoisseur Renovations,CON037,Director of Corporate Services and Transformation,Balance Sheet,Long Term Assets
http://www.ons.gov.uk/ons/guide-method/geography/products/names--codes-and-look-ups/names-and-codes-listings/names-and-codes-for-administrative-geography/index.html,Thanet District Council,18/06/2013,340220,1080.00,Distinctive Systems Ltd,DIS015,Director of Operational Services,Revenue,Supplies And Services
http://www.ons.gov.uk/ons/guide-method/geography/products/names--codes-and-look-ups/names-and-codes-listings/names-and-codes-for-administrative-geography/index.html,Thanet District Council,18/06/2013,340023,5475.00,Dolphin Lifts Kent,DOL003,Director of Corporate Services and Transformation,Balance Sheet,Long Term Assets
http://www.ons.gov.uk/ons/guide-method/geography/products/names--codes-and-look-ups/names-and-codes-listings/names-and-codes-for-administrative-geography/index.html,Thanet District Council,18/06/2013,339658,2975.00,Dr R K Chhabra,CHH001,Director of Operational Services,Revenue,Supplies And Services
http://www.ons.gov.uk/ons/guide-method/geography/products/names--codes-and-look-ups/names-and-codes-listings/names-and-codes-for-administrative-geography/index.html,Thanet District Council,18/06/2013,339447,267.99,E Saunders Margate Ltd,SAU001,Director of Operational Services,Revenue,Premises Related Expenditure
http://www.ons.gov.uk/ons/guide-method/geography/products/names--codes-and-look-ups/names-and-codes-listings/names-and-codes-for-administrative-geography/index.html,Thanet District Council,18/06/2013,339648,7577.04,Edge Enviro Services Ltd,EDG001,Director of Corporate Services and Transformation,Balance Sheet,Current Assets
http://www.ons.gov.uk/ons/guide-method/geography/products/names--codes-and-look-ups/names-and-codes-listings/names-and-codes-for-administrative-geography/index.html,Thanet District Council,18/06/2013,339751,1096.00,Egbert H Taylor & Company Ltd,TAY005,Director of Operational Services,Revenue,Supplies And Services
http://www.ons.gov.uk/ons/guide-method/geography/products/names--codes-and-look-ups/names-and-codes-listings/names-and-codes-for-administrative-geography/index.html,Thanet District Council,18/06/2013,339866,1179.00,Egbert H Taylor & Company Ltd,TAY005,Director of Operational Services,Revenue,Supplies And Services
http://www.ons.gov.uk/ons/guide-method/geography/products/names--codes-and-look-ups/names-and-codes-listings/names-and-codes-for-administrative-geography/index.html,Thanet District Council,18/06/2013,340007,2599.00,Family Mosaic Housing,FAM001,Director of Corporate Services and Transformation,Balance Sheet,Long Term Assets
http://www.ons.gov.uk/ons/guide-method/geography/products/names--codes-and-look-ups/names-and-codes-listings/names-and-codes-for-administrative-geography/index.html,Thanet District Council,18/06/2013,340038,2436.83,Family Mosaic Housing,FAM001,Director of Corporate Services and Transformation,Balance Sheet,Long Term Assets
http://www.ons.gov.uk/ons/guide-method/geography/products/names--codes-and-look-ups/names-and-codes-listings/names-and-codes-for-administrative-geography/index.html,Thanet District Council,18/06/2013,339862,321.38,Fibre Optic Comms (Foc) Ltd,FIB003,East Kent Shared Services,Revenue,Supplies And Services
http://www.ons.gov.uk/ons/guide-method/geography/products/names--codes-and-look-ups/names-and-codes-listings/names-and-codes-for-administrative-geography/index.html,Thanet District Council,18/06/2013,339348,450.00,Florence Court Hotel,FLO003,Director of Community Services,Revenue,Supplies And Services
http://www.ons.gov.uk/ons/guide-method/geography/products/names--codes-and-look-ups/names-and-codes-listings/names-and-codes-for-administrative-geography/index.html,Thanet District Council,18/06/2013,339307,500.00,Freeflow Limited,FRE010,Director of Operational Services,Revenue,Premises Related Expenditure
http://www.ons.gov.uk/ons/guide-method/geography/products/names--codes-and-look-ups/names-and-codes-listings/names-and-codes-for-administrative-geography/index.html,Thanet District Council,18/06/2013,338964,6742.92,Future-Tech Sci Ltd,FUT001,Director of Operational Services,Revenue,Premises Related Expenditure
http://www.ons.gov.uk/ons/guide-method/geography/products/names--codes-and-look-ups/names-and-codes-listings/names-and-codes-for-administrative-geography/index.html,Thanet District Council,18/06/2013,339750,264.00,G&G Signs,GGS001,Director of Operational Services,Revenue,Premises Related Expenditure
http://www.ons.gov.uk/ons/guide-method/geography/products/names--codes-and-look-ups/names-and-codes-listings/names-and-codes-for-administrative-geography/index.html,Thanet District Council,18/06/2013,339865,4006.98,Glasdon Uk Ltd,GLA001,Director of Operational Services,Revenue,Supplies And Services
http://www.ons.gov.uk/ons/guide-method/geography/products/names--codes-and-look-ups/names-and-codes-listings/names-and-codes-for-administrative-geography/index.html,Thanet District Council,18/06/2013,339873,21873.75,Grant Thornton Uk Llp,GRA048,Director of Corporate Services and Transformation,Revenue,Supplies And Services
http://www.ons.gov.uk/ons/guide-method/geography/products/names--codes-and-look-ups/names-and-codes-listings/names-and-codes-for-administrative-geography/index.html,Thanet District Council,18/06/2013,338681,1250.00,Hbhc Synergy Ltd,HBH001,Director of Corporate Services and Transformation,Revenue,Supplies And Services
http://www.ons.gov.uk/ons/guide-method/geography/products/names--codes-and-look-ups/names-and-codes-listings/names-and-codes-for-administrative-geography/index.html,Thanet District Council,18/06/2013,338949,1500.00,Hbhc Synergy Ltd,HBH001,Director of Corporate Services and Transformation,Revenue,Supplies And Services
http://www.ons.gov.uk/ons/guide-method/geography/products/names--codes-and-look-ups/names-and-codes-listings/names-and-codes-for-administrative-geography/index.html,Thanet District Council,18/06/2013,339523,4021.37,Holbrook Revell Electrical Ltd,HOL015,Director of Operational Services,Revenue,Supplies And Services
http://www.ons.gov.uk/ons/guide-method/geography/products/names--codes-and-look-ups/names-and-codes-listings/names-and-codes-for-administrative-geography/index.html,Thanet District Council,18/06/2013,339025,345.00,Holt & Wotton Ltd,HOL001,Director of Corporate Services and Transformation,Balance Sheet,Current Assets
http://www.ons.gov.uk/ons/guide-method/geography/products/names--codes-and-look-ups/names-and-codes-listings/names-and-codes-for-administrative-geography/index.html,Thanet District Council,18/06/2013,339971,303.75,Hr Go Recruitment Ltd,HRG002,Director of Operational Services,Revenue,Employees
http://www.ons.gov.uk/ons/guide-method/geography/products/names--codes-and-look-ups/names-and-codes-listings/names-and-codes-for-administrative-geography/index.html,Thanet District Council,18/06/2013,339972,6119.19,Hr Go Recruitment Ltd,HRG002,Director of Operational Services,Revenue,Employees
http://www.ons.gov.uk/ons/guide-method/geography/products/names--codes-and-look-ups/names-and-codes-listings/names-and-codes-for-administrative-geography/index.html,Thanet District Council,18/06/2013,339973,5772.22,Hr Go Recruitment Ltd,HRG002,Director of Operational Services,Revenue,Employees
http://www.ons.gov.uk/ons/guide-method/geography/products/names--codes-and-look-ups/names-and-codes-listings/names-and-codes-for-administrative-geography/index.html,Thanet District Council,18/06/2013,339273,1216.00,Idox Software  Limited,IDO001,Director of Community Services,Revenue,Supplies And Services
http://www.ons.gov.uk/ons/guide-method/geography/products/names--codes-and-look-ups/names-and-codes-listings/names-and-codes-for-administrative-geography/index.html,Thanet District Council,18/06/2013,339237,1591.90,Insight Direct (Uk) Ltd,INS013,Director of Corporate Services and Transformation,Revenue,Supplies And Services
http://www.ons.gov.uk/ons/guide-method/geography/products/names--codes-and-look-ups/names-and-codes-listings/names-and-codes-for-administrative-geography/index.html,Thanet District Council,18/06/2013,340105,3000.00,Island Events,ISL009,Director of Community Services,Revenue,Supplies And Services
http://www.ons.gov.uk/ons/guide-method/geography/products/names--codes-and-look-ups/names-and-codes-listings/names-and-codes-for-administrative-geography/index.html,Thanet District Council,18/06/2013,338571,131810.51,J Breheny Contractors Ltd,BRE002,Director of Corporate Services and Transformation,Balance Sheet,Long Term Assets
http://www.ons.gov.uk/ons/guide-method/geography/products/names--codes-and-look-ups/names-and-codes-listings/names-and-codes-for-administrative-geography/index.html,Thanet District Council,18/06/2013,340017,855.72,John Gale,GAL001,Director of Corporate Services and Transformation,Balance Sheet,Long Term Assets
http://www.ons.gov.uk/ons/guide-method/geography/products/names--codes-and-look-ups/names-and-codes-listings/names-and-codes-for-administrative-geography/index.html,Thanet District Council,18/06/2013,340020,2364.60,John Gale,GAL001,Director of Corporate Services and Transformation,Balance Sheet,Long Term Assets
http://www.ons.gov.uk/ons/guide-method/geography/products/names--codes-and-look-ups/names-and-codes-listings/names-and-codes-for-administrative-geography/index.html,Thanet District Council,18/06/2013,340031,752.40,John Gale,GAL001,Director of Corporate Services and Transformation,Balance Sheet,Long Term Assets
http://www.ons.gov.uk/ons/guide-method/geography/products/names--codes-and-look-ups/names-and-codes-listings/names-and-codes-for-administrative-geography/index.html,Thanet District Council,18/06/2013,339858,650.00,Jump It Recruitment Solutions Ltd,JUM001,East Kent Shared Services,Revenue,Employees
http://www.ons.gov.uk/ons/guide-method/geography/products/names--codes-and-look-ups/names-and-codes-listings/names-and-codes-for-administrative-geography/index.html,Thanet District Council,18/06/2013,339128,5000.00,Kent & Medway Charity Team,KMC003,Director of Corporate Services and Transformation,Revenue,Supplies And Services
http://www.ons.gov.uk/ons/guide-method/geography/products/names--codes-and-look-ups/names-and-codes-listings/names-and-codes-for-administrative-geography/index.html,Thanet District Council,18/06/2013,339134,5000.00,Kent County Council,KCC002,Director of Corporate Services and Transformation,Balance Sheet,Long Term Assets
http://www.ons.gov.uk/ons/guide-method/geography/products/names--codes-and-look-ups/names-and-codes-listings/names-and-codes-for-administrative-geography/index.html,Thanet District Council,18/06/2013,331835,7182.94,Kent County Council (Kcs),KCC003,Director of Operational Services,Revenue,Premises Related Expenditure
http://www.ons.gov.uk/ons/guide-method/geography/products/names--codes-and-look-ups/names-and-codes-listings/names-and-codes-for-administrative-geography/index.html,Thanet District Council,18/06/2013,333456,6582.23,Kent County Council (Kcs),KCC003,Director of Operational Services,Revenue,Premises Related Expenditure
http://www.ons.gov.uk/ons/guide-method/geography/products/names--codes-and-look-ups/names-and-codes-listings/names-and-codes-for-administrative-geography/index.html,Thanet District Council,18/06/2013,338700,213.32,Kent County Council (Kcs),KCC003,Director of Operational Services,Revenue,Premises Related Expenditure
http://www.ons.gov.uk/ons/guide-method/geography/products/names--codes-and-look-ups/names-and-codes-listings/names-and-codes-for-administrative-geography/index.html,Thanet District Council,18/06/2013,339345,-2427.76,Kent County Council (Kcs),KCC003,Director of Operational Services,Revenue,Premises Related Expenditure
http://www.ons.gov.uk/ons/guide-method/geography/products/names--codes-and-look-ups/names-and-codes-listings/names-and-codes-for-administrative-geography/index.html,Thanet District Council,18/06/2013,339346,-7182.94,Kent County Council (Kcs),KCC003,Director of Operational Services,Revenue,Premises Related Expenditure
http://www.ons.gov.uk/ons/guide-method/geography/products/names--codes-and-look-ups/names-and-codes-listings/names-and-codes-for-administrative-geography/index.html,Thanet District Council,18/06/2013,339347,-6582.23,Kent County Council (Kcs),KCC003,Director of Operational Services,Revenue,Premises Related Expenditure
http://www.ons.gov.uk/ons/guide-method/geography/products/names--codes-and-look-ups/names-and-codes-listings/names-and-codes-for-administrative-geography/index.html,Thanet District Council,18/06/2013,339352,1841.06,Kent County Council (Kcs),KCC003,Director of Operational Services,Revenue,Premises Related Expenditure
http://www.ons.gov.uk/ons/guide-method/geography/products/names--codes-and-look-ups/names-and-codes-listings/names-and-codes-for-administrative-geography/index.html,Thanet District Council,18/06/2013,339353,578.59,Kent County Council (Kcs),KCC003,Director of Operational Services,Revenue,Premises Related Expenditure
http://www.ons.gov.uk/ons/guide-method/geography/products/names--codes-and-look-ups/names-and-codes-listings/names-and-codes-for-administrative-geography/index.html,Thanet District Council,18/06/2013,339356,3426.77,Kent County Council (Kcs),KCC003,Director of Operational Services,Revenue,Premises Related Expenditure
http://www.ons.gov.uk/ons/guide-method/geography/products/names--codes-and-look-ups/names-and-codes-listings/names-and-codes-for-administrative-geography/index.html,Thanet District Council,18/06/2013,338734,3159.55,Kent Police Authority,KPA001,Director of Operational Services,Revenue,Supplies And Services
http://www.ons.gov.uk/ons/guide-method/geography/products/names--codes-and-look-ups/names-and-codes-listings/names-and-codes-for-administrative-geography/index.html,Thanet District Council,18/06/2013,338976,1160.30,L W Burt & Son Ltd,BUR027,Director of Operational Services,Revenue,Premises Related Expenditure
http://www.ons.gov.uk/ons/guide-method/geography/products/names--codes-and-look-ups/names-and-codes-listings/names-and-codes-for-administrative-geography/index.html,Thanet District Council,18/06/2013,339501,2482.61,Level 3 Communications (Uk) Ltd,LEV005,Director of Corporate Services and Transformation,Balance Sheet,Current Assets
http://www.ons.gov.uk/ons/guide-method/geography/products/names--codes-and-look-ups/names-and-codes-listings/names-and-codes-for-administrative-geography/index.html,Thanet District Council,18/06/2013,339685,933.12,Local World Limited,LOC018,Director of Community Services,Revenue,Supplies And Services
http://www.ons.gov.uk/ons/guide-method/geography/products/names--codes-and-look-ups/names-and-codes-listings/names-and-codes-for-administrative-geography/index.html,Thanet District Council,18/06/2013,339714,1300.00,Locata (Housing Services) Ltd,LOC015,Director of Community Services,Revenue,Supplies And Services
http://www.ons.gov.uk/ons/guide-method/geography/products/names--codes-and-look-ups/names-and-codes-listings/names-and-codes-for-administrative-geography/index.html,Thanet District Council,18/06/2013,339668,2500.00,London Borough Of Camden,LON004,Director of Community Services,Revenue,Supplies And Services
http://www.ons.gov.uk/ons/guide-method/geography/products/names--codes-and-look-ups/names-and-codes-listings/names-and-codes-for-administrative-geography/index.html,Thanet District Council,18/06/2013,339323,290.00,M D Electrics,MDE001,Director of Operational Services,Revenue,Premises Related Expenditure
http://www.ons.gov.uk/ons/guide-method/geography/products/names--codes-and-look-ups/names-and-codes-listings/names-and-codes-for-administrative-geography/index.html,Thanet District Council,18/06/2013,340103,2000.00,Margate Charter Trustees,MCT001,Director of Community Services,Revenue,Supplies And Services
http://www.ons.gov.uk/ons/guide-method/geography/products/names--codes-and-look-ups/names-and-codes-listings/names-and-codes-for-administrative-geography/index.html,Thanet District Council,18/06/2013,340104,1500.00,Margate Charter Trustees,MCT001,Director of Community Services,Revenue,Supplies And Services
http://www.ons.gov.uk/ons/guide-method/geography/products/names--codes-and-look-ups/names-and-codes-listings/names-and-codes-for-administrative-geography/index.html,Thanet District Council,18/06/2013,339321,900.00,Maxwells Grounds Maintenance Ltd,MAX002,Director of Operational Services,Revenue,Premises Related Expenditure
http://www.ons.gov.uk/ons/guide-method/geography/products/names--codes-and-look-ups/names-and-codes-listings/names-and-codes-for-administrative-geography/index.html,Thanet District Council,18/06/2013,338619,1411.04,Mears Ltd,MEA003,Director of Corporate Services and Transformation,Balance Sheet,Current Assets
http://www.ons.gov.uk/ons/guide-method/geography/products/names--codes-and-look-ups/names-and-codes-listings/names-and-codes-for-administrative-geography/index.html,Thanet District Council,18/06/2013,339333,223.25,Mears Ltd,MEA003,Director of Corporate Services and Transformation,Balance Sheet,Current Assets
http://www.ons.gov.uk/ons/guide-method/geography/products/names--codes-and-look-ups/names-and-codes-listings/names-and-codes-for-administrative-geography/index.html,Thanet District Council,18/06/2013,339333,3536.33,Mears Ltd,MEA003,Director of Operational Services,Revenue,Premises Related Expenditure
http://www.ons.gov.uk/ons/guide-method/geography/products/names--codes-and-look-ups/names-and-codes-listings/names-and-codes-for-administrative-geography/index.html,Thanet District Council,18/06/2013,339459,6233.86,Med Clean South Ltd,MED015,Director of Operational Services,Revenue,Premises Related Expenditure
http://www.ons.gov.uk/ons/guide-method/geography/products/names--codes-and-look-ups/names-and-codes-listings/names-and-codes-for-administrative-geography/index.html,Thanet District Council,18/06/2013,339525,2173.00,Meter Macs Ltd,MET014,Director of Operational Services,Revenue,Supplies And Services
http://www.ons.gov.uk/ons/guide-method/geography/products/names--codes-and-look-ups/names-and-codes-listings/names-and-codes-for-administrative-geography/index.html,Thanet District Council,18/06/2013,339647,7211.16,Metric Group Ltd,MET001,Director of Operational Services,Revenue,Supplies And Services
http://www.ons.gov.uk/ons/guide-method/geography/products/names--codes-and-look-ups/names-and-codes-listings/names-and-codes-for-administrative-geography/index.html,Thanet District Council,18/06/2013,339653,615.21,Metric Group Ltd,MET001,Director of Operational Services,Revenue,Supplies And Services
http://www.ons.gov.uk/ons/guide-method/geography/products/names--codes-and-look-ups/names-and-codes-listings/names-and-codes-for-administrative-geography/index.html,Thanet District Council,18/06/2013,339683,1225.50,Michael Page Finance,PAG008,Director of Corporate Services and Transformation,Revenue,Employees
http://www.ons.gov.uk/ons/guide-method/geography/products/names--codes-and-look-ups/names-and-codes-listings/names-and-codes-for-administrative-geography/index.html,Thanet District Council,18/06/2013,340106,800.00,Minster Parish Council,MIN001,Director of Community Services,Revenue,Supplies And Services
http://www.ons.gov.uk/ons/guide-method/geography/products/names--codes-and-look-ups/names-and-codes-listings/names-and-codes-for-administrative-geography/index.html,Thanet District Council,18/06/2013,340124,420.00,Mr Dean Thistle,THI007,Director of Corporate Services and Transformation,Revenue,Supplies And Services
http://www.ons.gov.uk/ons/guide-method/geography/products/names--codes-and-look-ups/names-and-codes-listings/names-and-codes-for-administrative-geography/index.html,Thanet District Council,18/06/2013,340123,1680.00,Mr Rory Clarke,CLA040,Director of Community Services,Revenue,Supplies And Services
http://www.ons.gov.uk/ons/guide-method/geography/products/names--codes-and-look-ups/names-and-codes-listings/names-and-codes-for-administrative-geography/index.html,Thanet District Council,18/06/2013,339687,1125.00,Ncc Services Ltd,NCC003,Director of Community Services,Revenue,Supplies And Services
http://www.ons.gov.uk/ons/guide-method/geography/products/names--codes-and-look-ups/names-and-codes-listings/names-and-codes-for-administrative-geography/index.html,Thanet District Council,18/06/2013,339652,264.25,Neopost Ltd,NEO003,Director of Corporate Services and Transformation,Revenue,Supplies And Services
http://www.ons.gov.uk/ons/guide-method/geography/products/names--codes-and-look-ups/names-and-codes-listings/names-and-codes-for-administrative-geography/index.html,Thanet District Council,18/06/2013,340155,5000.00,Neopost Ltd Credifon,NEO002,Director of Corporate Services and Transformation,Revenue,Supplies And Services
http://www.ons.gov.uk/ons/guide-method/geography/products/names--codes-and-look-ups/names-and-codes-listings/names-and-codes-for-administrative-geography/index.html,Thanet District Council,18/06/2013,340109,600.00,Newspace,NEW036,Director of Community Services,Revenue,Supplies And Services
http://www.ons.gov.uk/ons/guide-method/geography/products/names--codes-and-look-ups/names-and-codes-listings/names-and-codes-for-administrative-geography/index.html,Thanet District Council,18/06/2013,339965,459.00,Ocean Media Group Ltd,OCE004,Director of Community Services,Revenue,Supplies And Services
http://www.ons.gov.uk/ons/guide-method/geography/products/names--codes-and-look-ups/names-and-codes-listings/names-and-codes-for-administrative-geography/index.html,Thanet District Council,18/06/2013,339381,416.07,Phoenix Software Ltd,PHO002,East Kent Shared Services,Revenue,Supplies And Services
http://www.ons.gov.uk/ons/guide-method/geography/products/names--codes-and-look-ups/names-and-codes-listings/names-and-codes-for-administrative-geography/index.html,Thanet District Council,18/06/2013,339383,251.93,Phoenix Software Ltd,PHO002,East Kent Shared Services,Revenue,Supplies And Services
http://www.ons.gov.uk/ons/guide-method/geography/products/names--codes-and-look-ups/names-and-codes-listings/names-and-codes-for-administrative-geography/index.html,Thanet District Council,18/06/2013,339696,9000.00,Pie Factory Music,PIE003,Director of Community Services,Revenue,Supplies And Services
http://www.ons.gov.uk/ons/guide-method/geography/products/names--codes-and-look-ups/names-and-codes-listings/names-and-codes-for-administrative-geography/index.html,Thanet District Council,18/06/2013,339688,370.40,Ppg Arch Coatings Uk Ltd,PPG001,Director of Operational Services,Revenue,Supplies And Services
http://www.ons.gov.uk/ons/guide-method/geography/products/names--codes-and-look-ups/names-and-codes-listings/names-and-codes-for-administrative-geography/index.html,Thanet District Council,18/06/2013,340206,444.48,Ppg Arch Coatings Uk Ltd,PPG001,Director of Operational Services,Revenue,Supplies And Services
http://www.ons.gov.uk/ons/guide-method/geography/products/names--codes-and-look-ups/names-and-codes-listings/names-and-codes-for-administrative-geography/index.html,Thanet District Council,18/06/2013,339519,290.60,Probrand Ltd,PRO012,East Kent Shared Services,Revenue,Supplies And Services
http://www.ons.gov.uk/ons/guide-method/geography/products/names--codes-and-look-ups/names-and-codes-listings/names-and-codes-for-administrative-geography/index.html,Thanet District Council,18/06/2013,339380,455.00,R Cannon,CAN007,Director of Operational Services,Revenue,Premises Related Expenditure
http://www.ons.gov.uk/ons/guide-method/geography/products/names--codes-and-look-ups/names-and-codes-listings/names-and-codes-for-administrative-geography/index.html,Thanet District Council,18/06/2013,339272,54472.72,R R Richardson Ltd,RIC027,Director of Corporate Services and Transformation,Balance Sheet,Long Term Assets
http://www.ons.gov.uk/ons/guide-method/geography/products/names--codes-and-look-ups/names-and-codes-listings/names-and-codes-for-administrative-geography/index.html,Thanet District Council,18/06/2013,339689,1310.00,Rackspace Limited,RAC006,East Kent Shared Services,Revenue,Supplies And Services
http://www.ons.gov.uk/ons/guide-method/geography/products/names--codes-and-look-ups/names-and-codes-listings/names-and-codes-for-administrative-geography/index.html,Thanet District Council,18/06/2013,340113,30000.00,Ramsgate Town Council,RAM031,Director of Community Services,Revenue,Supplies And Services
http://www.ons.gov.uk/ons/guide-method/geography/products/names--codes-and-look-ups/names-and-codes-listings/names-and-codes-for-administrative-geography/index.html,Thanet District Council,18/06/2013,340079,22567.72,Rees Page Solicitors,REE017,Director of Corporate Services and Transformation,Balance Sheet,Long Term Assets
http://www.ons.gov.uk/ons/guide-method/geography/products/names--codes-and-look-ups/names-and-codes-listings/names-and-codes-for-administrative-geography/index.html,Thanet District Council,18/06/2013,339749,2376.41,Royal Mail,ROY004,Director of Corporate Services and Transformation,Revenue,Supplies And Services
http://www.ons.gov.uk/ons/guide-method/geography/products/names--codes-and-look-ups/names-and-codes-listings/names-and-codes-for-administrative-geography/index.html,Thanet District Council,18/06/2013,339453,922.75,Santander Uk Plc,SAN019,Director of Community Services,Revenue,Supplies And Services
http://www.ons.gov.uk/ons/guide-method/geography/products/names--codes-and-look-ups/names-and-codes-listings/names-and-codes-for-administrative-geography/index.html,Thanet District Council,18/06/2013,339754,1829.61,Sba Ltd,SBA001,Director of Operational Services,Revenue,Supplies And Services
http://www.ons.gov.uk/ons/guide-method/geography/products/names--codes-and-look-ups/names-and-codes-listings/names-and-codes-for-administrative-geography/index.html,Thanet District Council,18/06/2013,339664,2200.00,Shoreline Surveys Limited,SHO001,Director of Operational Services,Revenue,Premises Related Expenditure
http://www.ons.gov.uk/ons/guide-method/geography/products/names--codes-and-look-ups/names-and-codes-listings/names-and-codes-for-administrative-geography/index.html,Thanet District Council,18/06/2013,340008,1363.44,Signature,SIG012,Director of Corporate Services and Transformation,Balance Sheet,Long Term Assets
http://www.ons.gov.uk/ons/guide-method/geography/products/names--codes-and-look-ups/names-and-codes-listings/names-and-codes-for-administrative-geography/index.html,Thanet District Council,18/06/2013,339674,2450.00,Smithsgore,SMI046,Director of Community Services,Revenue,Supplies And Services
http://www.ons.gov.uk/ons/guide-method/geography/products/names--codes-and-look-ups/names-and-codes-listings/names-and-codes-for-administrative-geography/index.html,Thanet District Council,18/06/2013,340030,6270.00,South East Building Company Limited,SEB001,Director of Corporate Services and Transformation,Balance Sheet,Long Term Assets
http://www.ons.gov.uk/ons/guide-method/geography/products/names--codes-and-look-ups/names-and-codes-listings/names-and-codes-for-administrative-geography/index.html,Thanet District Council,18/06/2013,340028,12600.00,South East Wetrooms Limited,SEW002,Director of Corporate Services and Transformation,Balance Sheet,Long Term Assets
http://www.ons.gov.uk/ons/guide-method/geography/products/names--codes-and-look-ups/names-and-codes-listings/names-and-codes-for-administrative-geography/index.html,Thanet District Council,18/06/2013,339362,-500.65,Southern Electric,SEL007,Director of Operational Services,Revenue,Premises Related Expenditure
http://www.ons.gov.uk/ons/guide-method/geography/products/names--codes-and-look-ups/names-and-codes-listings/names-and-codes-for-administrative-geography/index.html,Thanet District Council,18/06/2013,339368,-265.79,Southern Electric,SEL007,Director of Operational Services,Revenue,Premises Related Expenditure
http://www.ons.gov.uk/ons/guide-method/geography/products/names--codes-and-look-ups/names-and-codes-listings/names-and-codes-for-administrative-geography/index.html,Thanet District Council,18/06/2013,339373,499.26,Southern Electric,SEL007,Director of Operational Services,Revenue,Premises Related Expenditure
http://www.ons.gov.uk/ons/guide-method/geography/products/names--codes-and-look-ups/names-and-codes-listings/names-and-codes-for-administrative-geography/index.html,Thanet District Council,18/06/2013,339382,265.04,Southern Electric,SEL007,Director of Operational Services,Revenue,Premises Related Expenditure
http://www.ons.gov.uk/ons/guide-method/geography/products/names--codes-and-look-ups/names-and-codes-listings/names-and-codes-for-administrative-geography/index.html,Thanet District Council,18/06/2013,338950,228.00,Stewart Anthony Ltd,ANT001,Director of Operational Services,Revenue,Premises Related Expenditure
http://www.ons.gov.uk/ons/guide-method/geography/products/names--codes-and-look-ups/names-and-codes-listings/names-and-codes-for-administrative-geography/index.html,Thanet District Council,18/06/2013,340211,432.51,Stewart Anthony Ltd,ANT001,Director of Operational Services,Revenue,Premises Related Expenditure
http://www.ons.gov.uk/ons/guide-method/geography/products/names--codes-and-look-ups/names-and-codes-listings/names-and-codes-for-administrative-geography/index.html,Thanet District Council,18/06/2013,339882,200.00,Straight Plc,STR021,Director of Operational Services,Revenue,Supplies And Services
http://www.ons.gov.uk/ons/guide-method/geography/products/names--codes-and-look-ups/names-and-codes-listings/names-and-codes-for-administrative-geography/index.html,Thanet District Council,18/06/2013,339883,2376.00,Straight Plc,STR021,Director of Operational Services,Revenue,Supplies And Services
http://www.ons.gov.uk/ons/guide-method/geography/products/names--codes-and-look-ups/names-and-codes-listings/names-and-codes-for-administrative-geography/index.html,Thanet District Council,18/06/2013,339304,668.00,Streetmaster (S.Wales) Limited,STR001,Director of Operational Services,Revenue,Supplies And Services
http://www.ons.gov.uk/ons/guide-method/geography/products/names--codes-and-look-ups/names-and-codes-listings/names-and-codes-for-administrative-geography/index.html,Thanet District Council,18/06/2013,339358,282.00,Swale Heating Ltd,SWA006,Director of Corporate Services and Transformation,Balance Sheet,Current Assets
http://www.ons.gov.uk/ons/guide-method/geography/products/names--codes-and-look-ups/names-and-codes-listings/names-and-codes-for-administrative-geography/index.html,Thanet District Council,18/06/2013,339360,24618.46,Swale Heating Ltd,SWA006,Director of Corporate Services and Transformation,Balance Sheet,Current Assets
http://www.ons.gov.uk/ons/guide-method/geography/products/names--codes-and-look-ups/names-and-codes-listings/names-and-codes-for-administrative-geography/index.html,Thanet District Council,18/06/2013,340039,2714.00,Swale Heating Ltd,SWA006,Director of Corporate Services and Transformation,Balance Sheet,Current Assets
http://www.ons.gov.uk/ons/guide-method/geography/products/names--codes-and-look-ups/names-and-codes-listings/names-and-codes-for-administrative-geography/index.html,Thanet District Council,18/06/2013,340040,1739.00,Swale Heating Ltd,SWA006,Director of Corporate Services and Transformation,Balance Sheet,Current Assets
http://www.ons.gov.uk/ons/guide-method/geography/products/names--codes-and-look-ups/names-and-codes-listings/names-and-codes-for-administrative-geography/index.html,Thanet District Council,18/06/2013,340041,1539.00,Swale Heating Ltd,SWA006,Director of Corporate Services and Transformation,Balance Sheet,Current Assets
http://www.ons.gov.uk/ons/guide-method/geography/products/names--codes-and-look-ups/names-and-codes-listings/names-and-codes-for-administrative-geography/index.html,Thanet District Council,18/06/2013,340042,1785.00,Swale Heating Ltd,SWA006,Director of Corporate Services and Transformation,Balance Sheet,Current Assets
http://www.ons.gov.uk/ons/guide-method/geography/products/names--codes-and-look-ups/names-and-codes-listings/names-and-codes-for-administrative-geography/index.html,Thanet District Council,18/06/2013,340043,1921.00,Swale Heating Ltd,SWA006,Director of Corporate Services and Transformation,Balance Sheet,Current Assets
http://www.ons.gov.uk/ons/guide-method/geography/products/names--codes-and-look-ups/names-and-codes-listings/names-and-codes-for-administrative-geography/index.html,Thanet District Council,18/06/2013,340044,1874.00,Swale Heating Ltd,SWA006,Director of Corporate Services and Transformation,Balance Sheet,Current Assets
http://www.ons.gov.uk/ons/guide-method/geography/products/names--codes-and-look-ups/names-and-codes-listings/names-and-codes-for-administrative-geography/index.html,Thanet District Council,18/06/2013,340045,1739.00,Swale Heating Ltd,SWA006,Director of Corporate Services and Transformation,Balance Sheet,Current Assets
http://www.ons.gov.uk/ons/guide-method/geography/products/names--codes-and-look-ups/names-and-codes-listings/names-and-codes-for-administrative-geography/index.html,Thanet District Council,18/06/2013,340047,1619.00,Swale Heating Ltd,SWA006,Director of Corporate Services and Transformation,Balance Sheet,Current Assets
http://www.ons.gov.uk/ons/guide-method/geography/products/names--codes-and-look-ups/names-and-codes-listings/names-and-codes-for-administrative-geography/index.html,Thanet District Council,18/06/2013,340048,1739.00,Swale Heating Ltd,SWA006,Director of Corporate Services and Transformation,Balance Sheet,Current Assets
http://www.ons.gov.uk/ons/guide-method/geography/products/names--codes-and-look-ups/names-and-codes-listings/names-and-codes-for-administrative-geography/index.html,Thanet District Council,18/06/2013,340223,5000.00,Thanet Community Networks,TCO011,Director of Community Services,Revenue,Supplies And Services
http://www.ons.gov.uk/ons/guide-method/geography/products/names--codes-and-look-ups/names-and-codes-listings/names-and-codes-for-administrative-geography/index.html,Thanet District Council,18/06/2013,340100,700.00,Thanet Roadrunners Athletics Club,THA010,Director of Community Services,Revenue,Supplies And Services
http://www.ons.gov.uk/ons/guide-method/geography/products/names--codes-and-look-ups/names-and-codes-listings/names-and-codes-for-administrative-geography/index.html,Thanet District Council,18/06/2013,339462,288.00,Thanet Safe Limited,TSA004,Director of Operational Services,Revenue,Supplies And Services
http://www.ons.gov.uk/ons/guide-method/geography/products/names--codes-and-look-ups/names-and-codes-listings/names-and-codes-for-administrative-geography/index.html,Thanet District Council,18/06/2013,339779,1258.33,The Glenwood Hotel,GLE007,Director of Community Services,Revenue,Supplies And Services
http://www.ons.gov.uk/ons/guide-method/geography/products/names--codes-and-look-ups/names-and-codes-listings/names-and-codes-for-administrative-geography/index.html,Thanet District Council,18/06/2013,339073,472.50,Thomson Reuters,THO043,Director of Corporate Services and Transformation,Revenue,Supplies And Services
http://www.ons.gov.uk/ons/guide-method/geography/products/names--codes-and-look-ups/names-and-codes-listings/names-and-codes-for-administrative-geography/index.html,Thanet District Council,18/06/2013,339073,1417.50,Thomson Reuters,THO043,Director of Community Services,Revenue,Supplies And Services
http://www.ons.gov.uk/ons/guide-method/geography/products/names--codes-and-look-ups/names-and-codes-listings/names-and-codes-for-administrative-geography/index.html,Thanet District Council,18/06/2013,338632,355.07,Total Supplies Ltd,TOT009,Director of Corporate Services and Transformation,Balance Sheet,Current Liabilities
http://www.ons.gov.uk/ons/guide-method/geography/products/names--codes-and-look-ups/names-and-codes-listings/names-and-codes-for-administrative-geography/index.html,Thanet District Council,18/06/2013,338970,38826.08,Tyco Fire & Integrated Sol (Uk) Ltd,TYC001,Director of Corporate Services and Transformation,Revenue,Premises Related Expenditure
http://www.ons.gov.uk/ons/guide-method/geography/products/names--codes-and-look-ups/names-and-codes-listings/names-and-codes-for-administrative-geography/index.html,Thanet District Council,18/06/2013,339709,283.40,Viridor Waste Management Ltd,VIR003,Director of Operational Services,Revenue,Third Party Payments
http://www.ons.gov.uk/ons/guide-method/geography/products/names--codes-and-look-ups/names-and-codes-listings/names-and-codes-for-administrative-geography/index.html,Thanet District Council,18/06/2013,339711,679.61,Viridor Waste Management Ltd,VIR003,Director of Operational Services,Revenue,Supplies And Services
http://www.ons.gov.uk/ons/guide-method/geography/products/names--codes-and-look-ups/names-and-codes-listings/names-and-codes-for-administrative-geography/index.html,Thanet District Council,18/06/2013,339713,397.49,Viridor Waste Management Ltd,VIR003,Director of Operational Services,Revenue,Supplies And Services
http://www.ons.gov.uk/ons/guide-method/geography/products/names--codes-and-look-ups/names-and-codes-listings/names-and-codes-for-administrative-geography/index.html,Thanet District Council,18/06/2013,339716,348.48,Wasteparts Uk Ltd,WAS006,Director of Operational Services,Revenue,Transport Related Expenditure
http://www.ons.gov.uk/ons/guide-method/geography/products/names--codes-and-look-ups/names-and-codes-listings/names-and-codes-for-administrative-geography/index.html,Thanet District Council,18/06/2013,340037,6998.00,Wessex Lift Company Ltd,WES031,Director of Corporate Services and Transformation,Balance Sheet,Long Term Assets
http://www.ons.gov.uk/ons/guide-method/geography/products/names--codes-and-look-ups/names-and-codes-listings/names-and-codes-for-administrative-geography/index.html,Thanet District Council,18/06/2013,340097,2130.00,Westgate Community Centre Ass.,WES015,Director of Community Services,Revenue,Supplies And Services
http://www.ons.gov.uk/ons/guide-method/geography/products/names--codes-and-look-ups/names-and-codes-listings/names-and-codes-for-administrative-geography/index.html,Thanet District Council,18/06/2013,339682,880.00,Wilks Head & Eve,WIL028,Director of Corporate Services and Transformation,Revenue,Supplies And Services
http://www.ons.gov.uk/ons/guide-method/geography/products/names--codes-and-look-ups/names-and-codes-listings/names-and-codes-for-administrative-geography/index.html,Thanet District Council,18/06/2013,339457,486.56,Wise Handling Limited,WIS001,Director of Operational Services,Revenue,Supplies And Services
http://www.ons.gov.uk/ons/guide-method/geography/products/names--codes-and-look-ups/names-and-codes-listings/names-and-codes-for-administrative-geography/index.html,Thanet District Council,18/06/2013,339458,747.50,Wise Handling Limited,WIS001,Director of Operational Services,Revenue,Supplies And Services
http://www.ons.gov.uk/ons/guide-method/geography/products/names--codes-and-look-ups/names-and-codes-listings/names-and-codes-for-administrative-geography/index.html,Thanet District Council,18/06/2013,339299,794.63,Wordsworth Editions Ltd,WOR002,Director of Community Services,Revenue,Supplies And Services
http://www.ons.gov.uk/ons/guide-method/geography/products/names--codes-and-look-ups/names-and-codes-listings/names-and-codes-for-administrative-geography/index.html,Thanet District Council,18/06/2013,339280,471.50,Your Leisure Kent Limited,YOU016,Director of Community Services,Revenue,Premises Related Expenditure
http://www.ons.gov.uk/ons/guide-method/geography/products/names--codes-and-look-ups/names-and-codes-listings/names-and-codes-for-administrative-geography/index.html,Thanet District Council,18/06/2013,339869,10000.00,Your Leisure Kent Limited,YOU016,Director of Community Services,Revenue,Supplies And Services
http://www.ons.gov.uk/ons/guide-method/geography/products/names--codes-and-look-ups/names-and-codes-listings/names-and-codes-for-administrative-geography/index.html,Thanet District Council,19/06/2013,340434,482.33,Adecco Uk Ltd,ADE005,Director of Corporate Services and Transformation,Revenue,Employees
http://www.ons.gov.uk/ons/guide-method/geography/products/names--codes-and-look-ups/names-and-codes-listings/names-and-codes-for-administrative-geography/index.html,Thanet District Council,19/06/2013,340243,94016.71,Dexi Public Finance Bank,DEX001,Director of Corporate Services and Transformation,Balance Sheet,Current Assets
http://www.ons.gov.uk/ons/guide-method/geography/products/names--codes-and-look-ups/names-and-codes-listings/names-and-codes-for-administrative-geography/index.html,Thanet District Council,19/06/2013,339437,7395.20,Dover District Council,DOV001,East Kent Shared Services,Revenue,Supplies And Services
http://www.ons.gov.uk/ons/guide-method/geography/products/names--codes-and-look-ups/names-and-codes-listings/names-and-codes-for-administrative-geography/index.html,Thanet District Council,19/06/2013,339857,225.68,Groundsman,GRO022,Director of Operational Services,Revenue,Supplies And Services
http://www.ons.gov.uk/ons/guide-method/geography/products/names--codes-and-look-ups/names-and-codes-listings/names-and-codes-for-administrative-geography/index.html,Thanet District Council,19/06/2013,338959,1210.00,Hire Station,HIR001,Director of Operational Services,Revenue,Supplies And Services
http://www.ons.gov.uk/ons/guide-method/geography/products/names--codes-and-look-ups/names-and-codes-listings/names-and-codes-for-administrative-geography/index.html,Thanet District Council,19/06/2013,340441,239268.00,Kent & Medway Towns Fire Authority,KMT001,Director of Corporate Services and Transformation,Balance Sheet,Reserves
http://www.ons.gov.uk/ons/guide-method/geography/products/names--codes-and-look-ups/names-and-codes-listings/names-and-codes-for-administrative-geography/index.html,Thanet District Council,19/06/2013,340436,3534463.00,Kent County Council,KCC022,Director of Corporate Services and Transformation,Balance Sheet,Reserves
http://www.ons.gov.uk/ons/guide-method/geography/products/names--codes-and-look-ups/names-and-codes-listings/names-and-codes-for-administrative-geography/index.html,Thanet District Council,19/06/2013,340438,447878.00,Kent Police Authority,KPA003,Director of Corporate Services and Transformation,Balance Sheet,Reserves
http://www.ons.gov.uk/ons/guide-method/geography/products/names--codes-and-look-ups/names-and-codes-listings/names-and-codes-for-administrative-geography/index.html,Thanet District Council,19/06/2013,340254,261.19,Nat West Bank,NWE001,Director of Corporate Services and Transformation,Revenue,Supplies And Services
http://www.ons.gov.uk/ons/guide-method/geography/products/names--codes-and-look-ups/names-and-codes-listings/names-and-codes-for-administrative-geography/index.html,Thanet District Council,19/06/2013,N/A,427.32,REDACTED PERSONAL DATA,N/A,Director of Operational Services,Revenue,Transport Related Expenditure
http://www.ons.gov.uk/ons/guide-method/geography/products/names--codes-and-look-ups/names-and-codes-listings/names-and-codes-for-administrative-geography/index.html,Thanet District Council,19/06/2013,N/A,987.16,REDACTED PERSONAL DATA,N/A,East Kent Shared Services,Revenue,Transport Related Expenditure
http://www.ons.gov.uk/ons/guide-method/geography/products/names--codes-and-look-ups/names-and-codes-listings/names-and-codes-for-administrative-geography/index.html,Thanet District Council,19/06/2013,N/A,284.57,REDACTED PERSONAL DATA,N/A,Director of Operational Services,Revenue,Transport Related Expenditure
http://www.ons.gov.uk/ons/guide-method/geography/products/names--codes-and-look-ups/names-and-codes-listings/names-and-codes-for-administrative-geography/index.html,Thanet District Council,19/06/2013,N/A,308.20,REDACTED PERSONAL DATA,N/A,East Kent Shared Services,Revenue,Transport Related Expenditure
http://www.ons.gov.uk/ons/guide-method/geography/products/names--codes-and-look-ups/names-and-codes-listings/names-and-codes-for-administrative-geography/index.html,Thanet District Council,19/06/2013,N/A,368.70,REDACTED PERSONAL DATA,N/A,Director of Corporate Services and Transformation,Revenue,Transport Related Expenditure
http://www.ons.gov.uk/ons/guide-method/geography/products/names--codes-and-look-ups/names-and-codes-listings/names-and-codes-for-administrative-geography/index.html,Thanet District Council,19/06/2013,N/A,339.40,REDACTED PERSONAL DATA,N/A,Director of Corporate Services and Transformation,Revenue,Transport Related Expenditure
http://www.ons.gov.uk/ons/guide-method/geography/products/names--codes-and-look-ups/names-and-codes-listings/names-and-codes-for-administrative-geography/index.html,Thanet District Council,19/06/2013,N/A,273.22,REDACTED PERSONAL DATA,N/A,Director of Corporate Services and Transformation,Revenue,Transport Related Expenditure
http://www.ons.gov.uk/ons/guide-method/geography/products/names--codes-and-look-ups/names-and-codes-listings/names-and-codes-for-administrative-geography/index.html,Thanet District Council,19/06/2013,N/A,302.53,REDACTED PERSONAL DATA,N/A,Director of Community Services,Revenue,Transport Related Expenditure
http://www.ons.gov.uk/ons/guide-method/geography/products/names--codes-and-look-ups/names-and-codes-listings/names-and-codes-for-administrative-geography/index.html,Thanet District Council,19/06/2013,N/A,284.57,REDACTED PERSONAL DATA,N/A,Director of Corporate Services and Transformation,Revenue,Transport Related Expenditure
http://www.ons.gov.uk/ons/guide-method/geography/products/names--codes-and-look-ups/names-and-codes-listings/names-and-codes-for-administrative-geography/index.html,Thanet District Council,19/06/2013,N/A,361.58,REDACTED PERSONAL DATA,N/A,Director of Operational Services,Revenue,Transport Related Expenditure
http://www.ons.gov.uk/ons/guide-method/geography/products/names--codes-and-look-ups/names-and-codes-listings/names-and-codes-for-administrative-geography/index.html,Thanet District Council,19/06/2013,N/A,372.49,REDACTED PERSONAL DATA,N/A,Director of Community Services,Revenue,Transport Related Expenditure
http://www.ons.gov.uk/ons/guide-method/geography/products/names--codes-and-look-ups/names-and-codes-listings/names-and-codes-for-administrative-geography/index.html,Thanet District Council,19/06/2013,N/A,301.58,REDACTED PERSONAL DATA,N/A,Director of Operational Services,Revenue,Transport Related Expenditure
http://www.ons.gov.uk/ons/guide-method/geography/products/names--codes-and-look-ups/names-and-codes-listings/names-and-codes-for-administrative-geography/index.html,Thanet District Council,19/06/2013,N/A,337.51,REDACTED PERSONAL DATA,N/A,Director of Community Services,Revenue,Transport Related Expenditure
http://www.ons.gov.uk/ons/guide-method/geography/products/names--codes-and-look-ups/names-and-codes-listings/names-and-codes-for-administrative-geography/index.html,Thanet District Council,19/06/2013,N/A,348.85,REDACTED PERSONAL DATA,N/A,Director of Corporate Services and Transformation,Revenue,Transport Related Expenditure
http://www.ons.gov.uk/ons/guide-method/geography/products/names--codes-and-look-ups/names-and-codes-listings/names-and-codes-for-administrative-geography/index.html,Thanet District Council,19/06/2013,N/A,273.49,REDACTED PERSONAL DATA,N/A,East Kent Shared Services,Revenue,Transport Related Expenditure
http://www.ons.gov.uk/ons/guide-method/geography/products/names--codes-and-look-ups/names-and-codes-listings/names-and-codes-for-administrative-geography/index.html,Thanet District Council,19/06/2013,N/A,333.73,REDACTED PERSONAL DATA,N/A,Director of Community Services,Revenue,Transport Related Expenditure
http://www.ons.gov.uk/ons/guide-method/geography/products/names--codes-and-look-ups/names-and-codes-listings/names-and-codes-for-administrative-geography/index.html,Thanet District Council,19/06/2013,N/A,335.13,REDACTED PERSONAL DATA,N/A,East Kent Shared Services,Revenue,Transport Related Expenditure
http://www.ons.gov.uk/ons/guide-method/geography/products/names--codes-and-look-ups/names-and-codes-listings/names-and-codes-for-administrative-geography/index.html,Thanet District Council,19/06/2013,N/A,289.29,REDACTED PERSONAL DATA,N/A,Director of Operational Services,Revenue,Transport Related Expenditure
http://www.ons.gov.uk/ons/guide-method/geography/products/names--codes-and-look-ups/names-and-codes-listings/names-and-codes-for-administrative-geography/index.html,Thanet District Council,19/06/2013,N/A,271.28,REDACTED PERSONAL DATA,N/A,East Kent Shared Services,Revenue,Transport Related Expenditure
http://www.ons.gov.uk/ons/guide-method/geography/products/names--codes-and-look-ups/names-and-codes-listings/names-and-codes-for-administrative-geography/index.html,Thanet District Council,19/06/2013,N/A,301.00,REDACTED PERSONAL DATA,N/A,Director of Community Services,Revenue,Transport Related Expenditure
http://www.ons.gov.uk/ons/guide-method/geography/products/names--codes-and-look-ups/names-and-codes-listings/names-and-codes-for-administrative-geography/index.html,Thanet District Council,19/06/2013,N/A,201.50,REDACTED PERSONAL DATA,N/A,Director of Community Services,Revenue,Supplies And Services
http://www.ons.gov.uk/ons/guide-method/geography/products/names--codes-and-look-ups/names-and-codes-listings/names-and-codes-for-administrative-geography/index.html,Thanet District Council,19/06/2013,N/A,625.05,REDACTED PERSONAL DATA,N/A,Director of Corporate Services and Transformation,Revenue,Transport Related Expenditure
http://www.ons.gov.uk/ons/guide-method/geography/products/names--codes-and-look-ups/names-and-codes-listings/names-and-codes-for-administrative-geography/index.html,Thanet District Council,19/06/2013,N/A,60.51,REDACTED PERSONAL DATA,N/A,Director of Community Services,Revenue,Transport Related Expenditure
http://www.ons.gov.uk/ons/guide-method/geography/products/names--codes-and-look-ups/names-and-codes-listings/names-and-codes-for-administrative-geography/index.html,Thanet District Council,19/06/2013,N/A,510.52,REDACTED PERSONAL DATA,N/A,East Kent Shared Services,Revenue,Transport Related Expenditure
http://www.ons.gov.uk/ons/guide-method/geography/products/names--codes-and-look-ups/names-and-codes-listings/names-and-codes-for-administrative-geography/index.html,Thanet District Council,19/06/2013,N/A,404.63,REDACTED PERSONAL DATA,N/A,East Kent Shared Services,Revenue,Transport Related Expenditure
http://www.ons.gov.uk/ons/guide-method/geography/products/names--codes-and-look-ups/names-and-codes-listings/names-and-codes-for-administrative-geography/index.html,Thanet District Council,19/06/2013,N/A,490.66,REDACTED PERSONAL DATA,N/A,East Kent Shared Services,Revenue,Transport Related Expenditure
http://www.ons.gov.uk/ons/guide-method/geography/products/names--codes-and-look-ups/names-and-codes-listings/names-and-codes-for-administrative-geography/index.html,Thanet District Council,19/06/2013,340253,2596.72,Santander,SAN017,Director of Corporate Services and Transformation,Revenue,Supplies And Services
http://www.ons.gov.uk/ons/guide-method/geography/products/names--codes-and-look-ups/names-and-codes-listings/names-and-codes-for-administrative-geography/index.html,Thanet District Council,19/06/2013,340253,865.57,Santander,SAN017,Director of Community Services,Revenue,Supplies And Services
http://www.ons.gov.uk/ons/guide-method/geography/products/names--codes-and-look-ups/names-and-codes-listings/names-and-codes-for-administrative-geography/index.html,Thanet District Council,19/06/2013,340431,1054.39,Santander,SAN017,Director of Corporate Services and Transformation,Revenue,Supplies And Services
http://www.ons.gov.uk/ons/guide-method/geography/products/names--codes-and-look-ups/names-and-codes-listings/names-and-codes-for-administrative-geography/index.html,Thanet District Council,19/06/2013,338937,299.00,Seaward Color Copy Ltd,SEA001,Director of Community Services,Revenue,Supplies And Services
http://www.ons.gov.uk/ons/guide-method/geography/products/names--codes-and-look-ups/names-and-codes-listings/names-and-codes-for-administrative-geography/index.html,Thanet District Council,19/06/2013,340433,2325951.00,Secretary Of State,SEC003,Director of Corporate Services and Transformation,Balance Sheet,Current Liabilities
http://www.ons.gov.uk/ons/guide-method/geography/products/names--codes-and-look-ups/names-and-codes-listings/names-and-codes-for-administrative-geography/index.html,Thanet District Council,19/06/2013,338920,4340.00,Shaw Electrical,SHA005,Director of Operational Services,Revenue,Supplies And Services
http://www.ons.gov.uk/ons/guide-method/geography/products/names--codes-and-look-ups/names-and-codes-listings/names-and-codes-for-administrative-geography/index.html,Thanet District Council,19/06/2013,339001,234.72,Total Supplies Ltd,TOT009,Director of Corporate Services and Transformation,Balance Sheet,Current Liabilities
http://www.ons.gov.uk/ons/guide-method/geography/products/names--codes-and-look-ups/names-and-codes-listings/names-and-codes-for-administrative-geography/index.html,Thanet District Council,19/06/2013,PC4159,-1051.67,Travelodge,N/A,Director of Community Services,Revenue,Supplies And Services
http://www.ons.gov.uk/ons/guide-method/geography/products/names--codes-and-look-ups/names-and-codes-listings/names-and-codes-for-administrative-geography/index.html,Thanet District Council,19/06/2013,340251,319.06,Worldpay Ltd,WOR008,Director of Operational Services,Revenue,Supplies And Services
http://www.ons.gov.uk/ons/guide-method/geography/products/names--codes-and-look-ups/names-and-codes-listings/names-and-codes-for-administrative-geography/index.html,Thanet District Council,19/06/2013,340252,1536.20,Worldpay Ltd,WOR008,Director of Corporate Services and Transformation,Revenue,Supplies And Services
http://www.ons.gov.uk/ons/guide-method/geography/products/names--codes-and-look-ups/names-and-codes-listings/names-and-codes-for-administrative-geography/index.html,Thanet District Council,19/06/2013,340255,587.27,Worldpay Ltd,WOR008,Director of Corporate Services and Transformation,Revenue,Supplies And Services
http://www.ons.gov.uk/ons/guide-method/geography/products/names--codes-and-look-ups/names-and-codes-listings/names-and-codes-for-administrative-geography/index.html,Thanet District Council,19/06/2013,340258,2341.69,Worldpay Ltd,WOR008,Director of Corporate Services and Transformation,Revenue,Supplies And Services
http://www.ons.gov.uk/ons/guide-method/geography/products/names--codes-and-look-ups/names-and-codes-listings/names-and-codes-for-administrative-geography/index.html,Thanet District Council,25/06/2013,339281,280.00,Abate Services,ABA005,Director of Operational Services,Revenue,Premises Related Expenditure
http://www.ons.gov.uk/ons/guide-method/geography/products/names--codes-and-look-ups/names-and-codes-listings/names-and-codes-for-administrative-geography/index.html,Thanet District Council,25/06/2013,340230,362.78,Adecco Uk Ltd,ADE005,Director of Corporate Services and Transformation,Revenue,Employees
http://www.ons.gov.uk/ons/guide-method/geography/products/names--codes-and-look-ups/names-and-codes-listings/names-and-codes-for-administrative-geography/index.html,Thanet District Council,25/06/2013,340663,610.13,Adecco Uk Ltd,ADE005,Director of Corporate Services and Transformation,Revenue,Employees
http://www.ons.gov.uk/ons/guide-method/geography/products/names--codes-and-look-ups/names-and-codes-listings/names-and-codes-for-administrative-geography/index.html,Thanet District Council,25/06/2013,339875,464.00,All Sign Solutions Ltd,ALL002,Director of Operational Services,Revenue,Premises Related Expenditure
http://www.ons.gov.uk/ons/guide-method/geography/products/names--codes-and-look-ups/names-and-codes-listings/names-and-codes-for-administrative-geography/index.html,Thanet District Council,25/06/2013,339880,240.00,All Sign Solutions Ltd,ALL002,Director of Operational Services,Revenue,Premises Related Expenditure
http://www.ons.gov.uk/ons/guide-method/geography/products/names--codes-and-look-ups/names-and-codes-listings/names-and-codes-for-administrative-geography/index.html,Thanet District Council,25/06/2013,339976,560.00,All Sign Solutions Ltd,ALL002,Director of Corporate Services and Transformation,Balance Sheet,Current Assets
http://www.ons.gov.uk/ons/guide-method/geography/products/names--codes-and-look-ups/names-and-codes-listings/names-and-codes-for-administrative-geography/index.html,Thanet District Council,25/06/2013,340588,277.36,Allstar Business Solutions Ltd,ALL038,Director of Operational Services,Revenue,Transport Related Expenditure
http://www.ons.gov.uk/ons/guide-method/geography/products/names--codes-and-look-ups/names-and-codes-listings/names-and-codes-for-administrative-geography/index.html,Thanet District Council,25/06/2013,340714,4050.00,Ascendit Lifts Ltd,ASC001,Director of Corporate Services and Transformation,Balance Sheet,Long Term Assets
http://www.ons.gov.uk/ons/guide-method/geography/products/names--codes-and-look-ups/names-and-codes-listings/names-and-codes-for-administrative-geography/index.html,Thanet District Council,25/06/2013,340679,281.42,Bag Of Salt,BAG002,Director of Operational Services,Revenue,Supplies And Services
http://www.ons.gov.uk/ons/guide-method/geography/products/names--codes-and-look-ups/names-and-codes-listings/names-and-codes-for-administrative-geography/index.html,Thanet District Council,25/06/2013,340599,4557.68,Better Beaches Ltd,BET009,Director of Operational Services,Revenue,Supplies And Services
http://www.ons.gov.uk/ons/guide-method/geography/products/names--codes-and-look-ups/names-and-codes-listings/names-and-codes-for-administrative-geography/index.html,Thanet District Council,25/06/2013,340503,2370.00,Bramling Construction Ltd,BRA020,Director of Corporate Services and Transformation,Balance Sheet,Long Term Assets
http://www.ons.gov.uk/ons/guide-method/geography/products/names--codes-and-look-ups/names-and-codes-listings/names-and-codes-for-administrative-geography/index.html,Thanet District Council,25/06/2013,339694,1320.00,Bridge Security Cctv Ltd,BRI039,Director of Community Services,Revenue,Supplies And Services
http://www.ons.gov.uk/ons/guide-method/geography/products/names--codes-and-look-ups/names-and-codes-listings/names-and-codes-for-administrative-geography/index.html,Thanet District Council,25/06/2013,339767,542.88,Bridge Security Cctv Ltd,BRI039,Director of Operational Services,Revenue,Supplies And Services
http://www.ons.gov.uk/ons/guide-method/geography/products/names--codes-and-look-ups/names-and-codes-listings/names-and-codes-for-administrative-geography/index.html,Thanet District Council,25/06/2013,339679,8641.10,Commercial Services Kent Ltd,COM049,Director of Operational Services,Revenue,Supplies And Services
http://www.ons.gov.uk/ons/guide-method/geography/products/names--codes-and-look-ups/names-and-codes-listings/names-and-codes-for-administrative-geography/index.html,Thanet District Council,25/06/2013,339974,209.94,Concentrix Technologies Limited,CON045,East Kent Shared Services,Revenue,Supplies And Services
http://www.ons.gov.uk/ons/guide-method/geography/products/names--codes-and-look-ups/names-and-codes-listings/names-and-codes-for-administrative-geography/index.html,Thanet District Council,25/06/2013,339011,18772.08,Coombs (Canterbury) Ltd,COO033,Director of Corporate Services and Transformation,Balance Sheet,Long Term Assets
http://www.ons.gov.uk/ons/guide-method/geography/products/names--codes-and-look-ups/names-and-codes-listings/names-and-codes-for-administrative-geography/index.html,Thanet District Council,25/06/2013,340271,370.00,Davis Coleman Limited,DAV025,Director of Corporate Services and Transformation,Balance Sheet,Long Term Assets
http://www.ons.gov.uk/ons/guide-method/geography/products/names--codes-and-look-ups/names-and-codes-listings/names-and-codes-for-administrative-geography/index.html,Thanet District Council,25/06/2013,340229,529.02,Dennis Eagle Ltd,DEN005,Director of Operational Services,Revenue,Transport Related Expenditure
http://www.ons.gov.uk/ons/guide-method/geography/products/names--codes-and-look-ups/names-and-codes-listings/names-and-codes-for-administrative-geography/index.html,Thanet District Council,25/06/2013,340504,10900.00,Dolphin Lifts Kent,DOL003,Director of Corporate Services and Transformation,Balance Sheet,Long Term Assets
http://www.ons.gov.uk/ons/guide-method/geography/products/names--codes-and-look-ups/names-and-codes-listings/names-and-codes-for-administrative-geography/index.html,Thanet District Council,25/06/2013,340716,4389.92,Dolphin Lifts Kent,DOL003,Director of Corporate Services and Transformation,Balance Sheet,Long Term Assets
http://www.ons.gov.uk/ons/guide-method/geography/products/names--codes-and-look-ups/names-and-codes-listings/names-and-codes-for-administrative-geography/index.html,Thanet District Council,25/06/2013,338717,490.35,E Saunders Margate Ltd,SAU001,Director of Operational Services,Revenue,Premises Related Expenditure
http://www.ons.gov.uk/ons/guide-method/geography/products/names--codes-and-look-ups/names-and-codes-listings/names-and-codes-for-administrative-geography/index.html,Thanet District Council,25/06/2013,339469,54.34,E Saunders Margate Ltd,SAU001,Director of Community Services,Revenue,Premises Related Expenditure
http://www.ons.gov.uk/ons/guide-method/geography/products/names--codes-and-look-ups/names-and-codes-listings/names-and-codes-for-administrative-geography/index.html,Thanet District Council,25/06/2013,339469,661.83,E Saunders Margate Ltd,SAU001,Director of Operational Services,Revenue,Premises Related Expenditure
http://www.ons.gov.uk/ons/guide-method/geography/products/names--codes-and-look-ups/names-and-codes-listings/names-and-codes-for-administrative-geography/index.html,Thanet District Council,25/06/2013,339470,67.18,E Saunders Margate Ltd,SAU001,Director of Community Services,Revenue,Premises Related Expenditure
http://www.ons.gov.uk/ons/guide-method/geography/products/names--codes-and-look-ups/names-and-codes-listings/names-and-codes-for-administrative-geography/index.html,Thanet District Council,25/06/2013,339470,668.38,E Saunders Margate Ltd,SAU001,Director of Operational Services,Revenue,Premises Related Expenditure
http://www.ons.gov.uk/ons/guide-method/geography/products/names--codes-and-look-ups/names-and-codes-listings/names-and-codes-for-administrative-geography/index.html,Thanet District Council,25/06/2013,340500,288.40,Family Mosaic Housing,FAM001,Director of Corporate Services and Transformation,Balance Sheet,Long Term Assets
http://www.ons.gov.uk/ons/guide-method/geography/products/names--codes-and-look-ups/names-and-codes-listings/names-and-codes-for-administrative-geography/index.html,Thanet District Council,25/06/2013,340501,2363.80,Family Mosaic Housing,FAM001,Director of Corporate Services and Transformation,Balance Sheet,Long Term Assets
http://www.ons.gov.uk/ons/guide-method/geography/products/names--codes-and-look-ups/names-and-codes-listings/names-and-codes-for-administrative-geography/index.html,Thanet District Council,25/06/2013,340502,574.44,Family Mosaic Housing,FAM001,Director of Corporate Services and Transformation,Balance Sheet,Long Term Assets
http://www.ons.gov.uk/ons/guide-method/geography/products/names--codes-and-look-ups/names-and-codes-listings/names-and-codes-for-administrative-geography/index.html,Thanet District Council,25/06/2013,340710,1622.80,Family Mosaic Housing,FAM001,Director of Corporate Services and Transformation,Balance Sheet,Long Term Assets
http://www.ons.gov.uk/ons/guide-method/geography/products/names--codes-and-look-ups/names-and-codes-listings/names-and-codes-for-administrative-geography/index.html,Thanet District Council,25/06/2013,340713,1445.44,Family Mosaic Housing,FAM001,Director of Corporate Services and Transformation,Balance Sheet,Long Term Assets
http://www.ons.gov.uk/ons/guide-method/geography/products/names--codes-and-look-ups/names-and-codes-listings/names-and-codes-for-administrative-geography/index.html,Thanet District Council,25/06/2013,340234,3538.50,Fuel Oils Kent,FUE001,Director of Operational Services,Revenue,Supplies And Services
http://www.ons.gov.uk/ons/guide-method/geography/products/names--codes-and-look-ups/names-and-codes-listings/names-and-codes-for-administrative-geography/index.html,Thanet District Council,25/06/2013,340272,275.00,Gig 4 Ltd,GIG001,Director of Community Services,Revenue,Supplies And Services
http://www.ons.gov.uk/ons/guide-method/geography/products/names--codes-and-look-ups/names-and-codes-listings/names-and-codes-for-administrative-geography/index.html,Thanet District Council,25/06/2013,339450,265.00,Grammer & Company Limited,GRA024,Director of Community Services,Revenue,Supplies And Services
http://www.ons.gov.uk/ons/guide-method/geography/products/names--codes-and-look-ups/names-and-codes-listings/names-and-codes-for-administrative-geography/index.html,Thanet District Council,25/06/2013,340013,609.54,Greenham,GRE001,Director of Operational Services,Revenue,Supplies And Services
http://www.ons.gov.uk/ons/guide-method/geography/products/names--codes-and-look-ups/names-and-codes-listings/names-and-codes-for-administrative-geography/index.html,Thanet District Council,25/06/2013,339970,5000.00,Guy Hollaway Architects Llp,HOL024,Director of Corporate Services and Transformation,Balance Sheet,Long Term Assets
http://www.ons.gov.uk/ons/guide-method/geography/products/names--codes-and-look-ups/names-and-codes-listings/names-and-codes-for-administrative-geography/index.html,Thanet District Council,25/06/2013,339748,1750.00,Hbhc Synergy Ltd,HBH001,Director of Corporate Services and Transformation,Revenue,Supplies And Services
http://www.ons.gov.uk/ons/guide-method/geography/products/names--codes-and-look-ups/names-and-codes-listings/names-and-codes-for-administrative-geography/index.html,Thanet District Council,25/06/2013,340443,705.00,Hi Way Services Ltd,HIW002,Director of Operational Services,Revenue,Premises Related Expenditure
http://www.ons.gov.uk/ons/guide-method/geography/products/names--codes-and-look-ups/names-and-codes-listings/names-and-codes-for-administrative-geography/index.html,Thanet District Council,25/06/2013,339522,2417.00,Holbrook Revell Electrical Ltd,HOL015,Director of Corporate Services and Transformation,Balance Sheet,Long Term Assets
http://www.ons.gov.uk/ons/guide-method/geography/products/names--codes-and-look-ups/names-and-codes-listings/names-and-codes-for-administrative-geography/index.html,Thanet District Council,25/06/2013,340439,5635.57,Hr Go Recruitment Ltd,HRG002,Director of Operational Services,Revenue,Employees
http://www.ons.gov.uk/ons/guide-method/geography/products/names--codes-and-look-ups/names-and-codes-listings/names-and-codes-for-administrative-geography/index.html,Thanet District Council,25/06/2013,340440,499.50,Hr Go Recruitment Ltd,HRG002,Director of Operational Services,Revenue,Employees
http://www.ons.gov.uk/ons/guide-method/geography/products/names--codes-and-look-ups/names-and-codes-listings/names-and-codes-for-administrative-geography/index.html,Thanet District Council,25/06/2013,340442,4394.73,Hr Go Recruitment Ltd,HRG002,Director of Operational Services,Revenue,Employees
http://www.ons.gov.uk/ons/guide-method/geography/products/names--codes-and-look-ups/names-and-codes-listings/names-and-codes-for-administrative-geography/index.html,Thanet District Council,25/06/2013,339306,7200.00,Ind Protective Coatings Servs Ltd,IPC002,Director of Corporate Services and Transformation,Balance Sheet,Long Term Assets
http://www.ons.gov.uk/ons/guide-method/geography/products/names--codes-and-look-ups/names-and-codes-listings/names-and-codes-for-administrative-geography/index.html,Thanet District Council,25/06/2013,340159,1942.50,James Smith(Planning Law Servcs)Ltd,SMI043,Director of Community Services,Revenue,Supplies And Services
http://www.ons.gov.uk/ons/guide-method/geography/products/names--codes-and-look-ups/names-and-codes-listings/names-and-codes-for-administrative-geography/index.html,Thanet District Council,25/06/2013,340022,268.14,Johnston Sweepers Ltd,JOH008,Director of Operational Services,Revenue,Transport Related Expenditure
http://www.ons.gov.uk/ons/guide-method/geography/products/names--codes-and-look-ups/names-and-codes-listings/names-and-codes-for-administrative-geography/index.html,Thanet District Council,25/06/2013,340586,3500.00,Kent Community Organisation,KCO005,Director of Community Services,Revenue,Supplies And Services
http://www.ons.gov.uk/ons/guide-method/geography/products/names--codes-and-look-ups/names-and-codes-listings/names-and-codes-for-administrative-geography/index.html,Thanet District Council,25/06/2013,339009,2816.00,Kent County Council,KCC002,Director of Corporate Services and Transformation,Revenue,Supplies And Services
http://www.ons.gov.uk/ons/guide-method/geography/products/names--codes-and-look-ups/names-and-codes-listings/names-and-codes-for-administrative-geography/index.html,Thanet District Council,25/06/2013,340265,215.00,Kent County Council,KCC002,Director of Corporate Services and Transformation,Revenue,Supplies And Services
http://www.ons.gov.uk/ons/guide-method/geography/products/names--codes-and-look-ups/names-and-codes-listings/names-and-codes-for-administrative-geography/index.html,Thanet District Council,25/06/2013,339977,5652.71,Kent County Council (Kcs),KCC003,Director of Operational Services,Revenue,Premises Related Expenditure
http://www.ons.gov.uk/ons/guide-method/geography/products/names--codes-and-look-ups/names-and-codes-listings/names-and-codes-for-administrative-geography/index.html,Thanet District Council,25/06/2013,339978,2614.02,Kent County Council (Kcs),KCC003,Director of Operational Services,Revenue,Premises Related Expenditure
http://www.ons.gov.uk/ons/guide-method/geography/products/names--codes-and-look-ups/names-and-codes-listings/names-and-codes-for-administrative-geography/index.html,Thanet District Council,25/06/2013,339979,8929.76,Kent County Council (Kcs),KCC003,Director of Operational Services,Revenue,Premises Related Expenditure
http://www.ons.gov.uk/ons/guide-method/geography/products/names--codes-and-look-ups/names-and-codes-listings/names-and-codes-for-administrative-geography/index.html,Thanet District Council,25/06/2013,339982,904.17,Kent County Council (Kcs),KCC003,Director of Operational Services,Revenue,Premises Related Expenditure
http://www.ons.gov.uk/ons/guide-method/geography/products/names--codes-and-look-ups/names-and-codes-listings/names-and-codes-for-administrative-geography/index.html,Thanet District Council,25/06/2013,339990,318.47,Kent County Council (Kcs),KCC003,Director of Operational Services,Revenue,Premises Related Expenditure
http://www.ons.gov.uk/ons/guide-method/geography/products/names--codes-and-look-ups/names-and-codes-listings/names-and-codes-for-administrative-geography/index.html,Thanet District Council,25/06/2013,339992,977.20,Kent County Council (Kcs),KCC003,Director of Operational Services,Revenue,Premises Related Expenditure
http://www.ons.gov.uk/ons/guide-method/geography/products/names--codes-and-look-ups/names-and-codes-listings/names-and-codes-for-administrative-geography/index.html,Thanet District Council,25/06/2013,339995,209.93,Kent County Council (Kcs),KCC003,Director of Operational Services,Revenue,Premises Related Expenditure
http://www.ons.gov.uk/ons/guide-method/geography/products/names--codes-and-look-ups/names-and-codes-listings/names-and-codes-for-administrative-geography/index.html,Thanet District Council,25/06/2013,339996,1150.89,Kent County Council (Kcs),KCC003,Director of Community Services,Revenue,Premises Related Expenditure
http://www.ons.gov.uk/ons/guide-method/geography/products/names--codes-and-look-ups/names-and-codes-listings/names-and-codes-for-administrative-geography/index.html,Thanet District Council,25/06/2013,340164,-718.23,Kent County Council (Kcs),KCC003,Director of Operational Services,Revenue,Premises Related Expenditure
http://www.ons.gov.uk/ons/guide-method/geography/products/names--codes-and-look-ups/names-and-codes-listings/names-and-codes-for-administrative-geography/index.html,Thanet District Council,25/06/2013,340170,2078.02,Kent County Council (Kcs),KCC003,Director of Operational Services,Revenue,Premises Related Expenditure
http://www.ons.gov.uk/ons/guide-method/geography/products/names--codes-and-look-ups/names-and-codes-listings/names-and-codes-for-administrative-geography/index.html,Thanet District Council,25/06/2013,340171,2603.42,Kent County Council (Kcs),KCC003,Director of Operational Services,Revenue,Premises Related Expenditure
http://www.ons.gov.uk/ons/guide-method/geography/products/names--codes-and-look-ups/names-and-codes-listings/names-and-codes-for-administrative-geography/index.html,Thanet District Council,25/06/2013,340204,655.00,Lobster Van Hire Ltd,LOB001,Director of Corporate Services and Transformation,Revenue,Transport Related Expenditure
http://www.ons.gov.uk/ons/guide-method/geography/products/names--codes-and-look-ups/names-and-codes-listings/names-and-codes-for-administrative-geography/index.html,Thanet District Council,25/06/2013,340665,224.64,Local World Limited,LOC018,Director of Corporate Services and Transformation,Revenue,Supplies And Services
http://www.ons.gov.uk/ons/guide-method/geography/products/names--codes-and-look-ups/names-and-codes-listings/names-and-codes-for-administrative-geography/index.html,Thanet District Council,25/06/2013,339324,255.00,M D Electrics,MDE001,Director of Operational Services,Revenue,Premises Related Expenditure
http://www.ons.gov.uk/ons/guide-method/geography/products/names--codes-and-look-ups/names-and-codes-listings/names-and-codes-for-administrative-geography/index.html,Thanet District Council,25/06/2013,340086,2000.00,Margate Carnival Group,MAR044,Director of Community Services,Revenue,Supplies And Services
http://www.ons.gov.uk/ons/guide-method/geography/products/names--codes-and-look-ups/names-and-codes-listings/names-and-codes-for-administrative-geography/index.html,Thanet District Council,25/06/2013,339757,300.00,Maxwells Grounds Maintenance Ltd,MAX002,Director of Operational Services,Revenue,Premises Related Expenditure
http://www.ons.gov.uk/ons/guide-method/geography/products/names--codes-and-look-ups/names-and-codes-listings/names-and-codes-for-administrative-geography/index.html,Thanet District Council,25/06/2013,338887,97968.55,Mears Ltd,MEA003,Director of Community Services,Revenue,Premises Related Expenditure
http://www.ons.gov.uk/ons/guide-method/geography/products/names--codes-and-look-ups/names-and-codes-listings/names-and-codes-for-administrative-geography/index.html,Thanet District Council,25/06/2013,340541,769.50,Michael Page Finance,PAG008,Director of Corporate Services and Transformation,Revenue,Employees
http://www.ons.gov.uk/ons/guide-method/geography/products/names--codes-and-look-ups/names-and-codes-listings/names-and-codes-for-administrative-geography/index.html,Thanet District Council,25/06/2013,340541,1254.00,Michael Page Finance,PAG008,Director of Operational Services,Revenue,Employees
http://www.ons.gov.uk/ons/guide-method/geography/products/names--codes-and-look-ups/names-and-codes-listings/names-and-codes-for-administrative-geography/index.html,Thanet District Council,25/06/2013,340161,552.65,Morgan Jones Ltd,MOR001,East Kent Shared Services,Revenue,Employees
http://www.ons.gov.uk/ons/guide-method/geography/products/names--codes-and-look-ups/names-and-codes-listings/names-and-codes-for-administrative-geography/index.html,Thanet District Council,25/06/2013,340162,354.38,Morgan Jones Ltd,MOR001,Director of Corporate Services and Transformation,Revenue,Employees
http://www.ons.gov.uk/ons/guide-method/geography/products/names--codes-and-look-ups/names-and-codes-listings/names-and-codes-for-administrative-geography/index.html,Thanet District Council,25/06/2013,340590,582.75,Morgan Jones Ltd,MOR001,Director of Corporate Services and Transformation,Revenue,Employees
http://www.ons.gov.uk/ons/guide-method/geography/products/names--codes-and-look-ups/names-and-codes-listings/names-and-codes-for-administrative-geography/index.html,Thanet District Council,25/06/2013,339644,648.00,Mr Philip Woolfe,WOO030,Director of Operational Services,Revenue,Supplies And Services
http://www.ons.gov.uk/ons/guide-method/geography/products/names--codes-and-look-ups/names-and-codes-listings/names-and-codes-for-administrative-geography/index.html,Thanet District Council,25/06/2013,339697,1300.00,P Lawrence & Son,LAW001,Director of Operational Services,Revenue,Premises Related Expenditure
http://www.ons.gov.uk/ons/guide-method/geography/products/names--codes-and-look-ups/names-and-codes-listings/names-and-codes-for-administrative-geography/index.html,Thanet District Council,25/06/2013,339698,420.00,P Lawrence & Son,LAW001,Director of Operational Services,Revenue,Premises Related Expenditure
http://www.ons.gov.uk/ons/guide-method/geography/products/names--codes-and-look-ups/names-and-codes-listings/names-and-codes-for-administrative-geography/index.html,Thanet District Council,25/06/2013,340025,345.06,Probrand Ltd,PRO012,East Kent Shared Services,Revenue,Supplies And Services
http://www.ons.gov.uk/ons/guide-method/geography/products/names--codes-and-look-ups/names-and-codes-listings/names-and-codes-for-administrative-geography/index.html,Thanet District Council,25/06/2013,340176,329.74,Probrand Ltd,PRO012,East Kent Shared Services,Revenue,Supplies And Services
http://www.ons.gov.uk/ons/guide-method/geography/products/names--codes-and-look-ups/names-and-codes-listings/names-and-codes-for-administrative-geography/index.html,Thanet District Council,25/06/2013,340237,735.00,R Cannon,CAN007,Director of Operational Services,Revenue,Premises Related Expenditure
http://www.ons.gov.uk/ons/guide-method/geography/products/names--codes-and-look-ups/names-and-codes-listings/names-and-codes-for-administrative-geography/index.html,Thanet District Council,25/06/2013,339238,5760.00,Rippleffect,RIP001,Director of Community Services,Revenue,Supplies And Services
http://www.ons.gov.uk/ons/guide-method/geography/products/names--codes-and-look-ups/names-and-codes-listings/names-and-codes-for-administrative-geography/index.html,Thanet District Council,25/06/2013,339676,350.00,Rogers & Hambidge Ltd,ROG007,Director of Community Services,Revenue,Supplies And Services
http://www.ons.gov.uk/ons/guide-method/geography/products/names--codes-and-look-ups/names-and-codes-listings/names-and-codes-for-administrative-geography/index.html,Thanet District Council,25/06/2013,339257,58242.00,Royal National Lifeboat Institution,RNL002,Director of Operational Services,Revenue,Supplies And Services
http://www.ons.gov.uk/ons/guide-method/geography/products/names--codes-and-look-ups/names-and-codes-listings/names-and-codes-for-administrative-geography/index.html,Thanet District Council,25/06/2013,339452,235.00,Santander Uk Plc,SAN019,East Kent Shared Services,Revenue,Supplies And Services
http://www.ons.gov.uk/ons/guide-method/geography/products/names--codes-and-look-ups/names-and-codes-listings/names-and-codes-for-administrative-geography/index.html,Thanet District Council,25/06/2013,340540,1300.00,Smithsgore,SMI046,Director of Community Services,Revenue,Supplies And Services
http://www.ons.gov.uk/ons/guide-method/geography/products/names--codes-and-look-ups/names-and-codes-listings/names-and-codes-for-administrative-geography/index.html,Thanet District Council,25/06/2013,340624,2770.00,South East Building Company Limited,SEB001,Director of Corporate Services and Transformation,Balance Sheet,Long Term Assets
http://www.ons.gov.uk/ons/guide-method/geography/products/names--codes-and-look-ups/names-and-codes-listings/names-and-codes-for-administrative-geography/index.html,Thanet District Council,25/06/2013,339468,1265.00,South East Netting Limited,SOU016,Director of Operational Services,Revenue,Premises Related Expenditure
http://www.ons.gov.uk/ons/guide-method/geography/products/names--codes-and-look-ups/names-and-codes-listings/names-and-codes-for-administrative-geography/index.html,Thanet District Council,25/06/2013,339916,-1758.31,Southern Electric,SEL007,Director of Community Services,Revenue,Premises Related Expenditure
http://www.ons.gov.uk/ons/guide-method/geography/products/names--codes-and-look-ups/names-and-codes-listings/names-and-codes-for-administrative-geography/index.html,Thanet District Council,25/06/2013,339917,-8059.29,Southern Electric,SEL007,Director of Community Services,Revenue,Premises Related Expenditure
http://www.ons.gov.uk/ons/guide-method/geography/products/names--codes-and-look-ups/names-and-codes-listings/names-and-codes-for-administrative-geography/index.html,Thanet District Council,25/06/2013,339922,-794.67,Southern Electric,SEL007,Director of Community Services,Revenue,Premises Related Expenditure
http://www.ons.gov.uk/ons/guide-method/geography/products/names--codes-and-look-ups/names-and-codes-listings/names-and-codes-for-administrative-geography/index.html,Thanet District Council,25/06/2013,339939,267.80,Southern Electric,SEL007,Director of Operational Services,Revenue,Premises Related Expenditure
http://www.ons.gov.uk/ons/guide-method/geography/products/names--codes-and-look-ups/names-and-codes-listings/names-and-codes-for-administrative-geography/index.html,Thanet District Council,25/06/2013,339940,332.70,Southern Electric,SEL007,Director of Operational Services,Revenue,Premises Related Expenditure
http://www.ons.gov.uk/ons/guide-method/geography/products/names--codes-and-look-ups/names-and-codes-listings/names-and-codes-for-administrative-geography/index.html,Thanet District Council,25/06/2013,339948,1746.99,Southern Electric,SEL007,Director of Community Services,Revenue,Premises Related Expenditure
http://www.ons.gov.uk/ons/guide-method/geography/products/names--codes-and-look-ups/names-and-codes-listings/names-and-codes-for-administrative-geography/index.html,Thanet District Council,25/06/2013,339950,8011.97,Southern Electric,SEL007,Director of Community Services,Revenue,Premises Related Expenditure
http://www.ons.gov.uk/ons/guide-method/geography/products/names--codes-and-look-ups/names-and-codes-listings/names-and-codes-for-administrative-geography/index.html,Thanet District Council,25/06/2013,339954,789.96,Southern Electric,SEL007,Director of Community Services,Revenue,Premises Related Expenditure
http://www.ons.gov.uk/ons/guide-method/geography/products/names--codes-and-look-ups/names-and-codes-listings/names-and-codes-for-administrative-geography/index.html,Thanet District Council,25/06/2013,340056,251.41,Southern Electric,SEL007,Director of Operational Services,Revenue,Premises Related Expenditure
http://www.ons.gov.uk/ons/guide-method/geography/products/names--codes-and-look-ups/names-and-codes-listings/names-and-codes-for-administrative-geography/index.html,Thanet District Council,25/06/2013,340058,565.89,Southern Electric,SEL007,Director of Community Services,Revenue,Premises Related Expenditure
http://www.ons.gov.uk/ons/guide-method/geography/products/names--codes-and-look-ups/names-and-codes-listings/names-and-codes-for-administrative-geography/index.html,Thanet District Council,25/06/2013,340064,407.64,Southern Electric,SEL007,Director of Community Services,Revenue,Premises Related Expenditure
http://www.ons.gov.uk/ons/guide-method/geography/products/names--codes-and-look-ups/names-and-codes-listings/names-and-codes-for-administrative-geography/index.html,Thanet District Council,25/06/2013,340070,1753.05,Southern Electric,SEL007,Director of Community Services,Revenue,Premises Related Expenditure
http://www.ons.gov.uk/ons/guide-method/geography/products/names--codes-and-look-ups/names-and-codes-listings/names-and-codes-for-administrative-geography/index.html,Thanet District Council,25/06/2013,340080,409.08,Southern Electric,SEL007,Director of Corporate Services and Transformation,Revenue,Premises Related Expenditure
http://www.ons.gov.uk/ons/guide-method/geography/products/names--codes-and-look-ups/names-and-codes-listings/names-and-codes-for-administrative-geography/index.html,Thanet District Council,25/06/2013,340081,381.29,Southern Electric,SEL007,Director of Operational Services,Revenue,Premises Related Expenditure
http://www.ons.gov.uk/ons/guide-method/geography/products/names--codes-and-look-ups/names-and-codes-listings/names-and-codes-for-administrative-geography/index.html,Thanet District Council,25/06/2013,340083,1062.48,Southern Electric,SEL007,Director of Operational Services,Revenue,Premises Related Expenditure
http://www.ons.gov.uk/ons/guide-method/geography/products/names--codes-and-look-ups/names-and-codes-listings/names-and-codes-for-administrative-geography/index.html,Thanet District Council,25/06/2013,340085,1082.87,Southern Electric,SEL007,Director of Operational Services,Revenue,Premises Related Expenditure
http://www.ons.gov.uk/ons/guide-method/geography/products/names--codes-and-look-ups/names-and-codes-listings/names-and-codes-for-administrative-geography/index.html,Thanet District Council,25/06/2013,340090,1867.31,Southern Electric,SEL007,Director of Operational Services,Revenue,Premises Related Expenditure
http://www.ons.gov.uk/ons/guide-method/geography/products/names--codes-and-look-ups/names-and-codes-listings/names-and-codes-for-administrative-geography/index.html,Thanet District Council,25/06/2013,340092,362.33,Southern Electric,SEL007,Director of Operational Services,Revenue,Premises Related Expenditure
http://www.ons.gov.uk/ons/guide-method/geography/products/names--codes-and-look-ups/names-and-codes-listings/names-and-codes-for-administrative-geography/index.html,Thanet District Council,25/06/2013,340111,-1068.85,Southern Electric,SEL007,Director of Operational Services,Revenue,Premises Related Expenditure
http://www.ons.gov.uk/ons/guide-method/geography/products/names--codes-and-look-ups/names-and-codes-listings/names-and-codes-for-administrative-geography/index.html,Thanet District Council,25/06/2013,340114,-1089.36,Southern Electric,SEL007,Director of Operational Services,Revenue,Premises Related Expenditure
http://www.ons.gov.uk/ons/guide-method/geography/products/names--codes-and-look-ups/names-and-codes-listings/names-and-codes-for-administrative-geography/index.html,Thanet District Council,25/06/2013,340118,-1764.37,Southern Electric,SEL007,Director of Community Services,Revenue,Premises Related Expenditure
http://www.ons.gov.uk/ons/guide-method/geography/products/names--codes-and-look-ups/names-and-codes-listings/names-and-codes-for-administrative-geography/index.html,Thanet District Council,25/06/2013,340133,-1873.77,Southern Electric,SEL007,Director of Operational Services,Revenue,Premises Related Expenditure
http://www.ons.gov.uk/ons/guide-method/geography/products/names--codes-and-look-ups/names-and-codes-listings/names-and-codes-for-administrative-geography/index.html,Thanet District Council,25/06/2013,340136,-363.80,Southern Electric,SEL007,Director of Operational Services,Revenue,Premises Related Expenditure
http://www.ons.gov.uk/ons/guide-method/geography/products/names--codes-and-look-ups/names-and-codes-listings/names-and-codes-for-administrative-geography/index.html,Thanet District Council,25/06/2013,340146,1065.44,Southern Electric,SEL007,Director of Community Services,Revenue,Premises Related Expenditure
http://www.ons.gov.uk/ons/guide-method/geography/products/names--codes-and-look-ups/names-and-codes-listings/names-and-codes-for-administrative-geography/index.html,Thanet District Council,25/06/2013,340148,-383.68,Southern Electric,SEL007,Director of Operational Services,Revenue,Premises Related Expenditure
http://www.ons.gov.uk/ons/guide-method/geography/products/names--codes-and-look-ups/names-and-codes-listings/names-and-codes-for-administrative-geography/index.html,Thanet District Council,25/06/2013,340149,-410.87,Southern Electric,SEL007,Director of Corporate Services and Transformation,Revenue,Premises Related Expenditure
http://www.ons.gov.uk/ons/guide-method/geography/products/names--codes-and-look-ups/names-and-codes-listings/names-and-codes-for-administrative-geography/index.html,Thanet District Council,25/06/2013,340153,-1073.41,Southern Electric,SEL007,Director of Community Services,Revenue,Premises Related Expenditure
http://www.ons.gov.uk/ons/guide-method/geography/products/names--codes-and-look-ups/names-and-codes-listings/names-and-codes-for-administrative-geography/index.html,Thanet District Council,25/06/2013,340188,339.38,Southern Electric,SEL007,Director of Community Services,Revenue,Premises Related Expenditure
http://www.ons.gov.uk/ons/guide-method/geography/products/names--codes-and-look-ups/names-and-codes-listings/names-and-codes-for-administrative-geography/index.html,Thanet District Council,25/06/2013,340189,15798.17,Southern Electric,SEL007,Director of Community Services,Revenue,Premises Related Expenditure
http://www.ons.gov.uk/ons/guide-method/geography/products/names--codes-and-look-ups/names-and-codes-listings/names-and-codes-for-administrative-geography/index.html,Thanet District Council,25/06/2013,340192,-15891.57,Southern Electric,SEL007,Director of Community Services,Revenue,Premises Related Expenditure
http://www.ons.gov.uk/ons/guide-method/geography/products/names--codes-and-look-ups/names-and-codes-listings/names-and-codes-for-administrative-geography/index.html,Thanet District Council,25/06/2013,340194,-568.93,Southern Electric,SEL007,Director of Community Services,Revenue,Premises Related Expenditure
http://www.ons.gov.uk/ons/guide-method/geography/products/names--codes-and-look-ups/names-and-codes-listings/names-and-codes-for-administrative-geography/index.html,Thanet District Council,25/06/2013,340198,-1033.90,Southern Electric,SEL007,Director of Operational Services,Revenue,Premises Related Expenditure
http://www.ons.gov.uk/ons/guide-method/geography/products/names--codes-and-look-ups/names-and-codes-listings/names-and-codes-for-administrative-geography/index.html,Thanet District Council,25/06/2013,340199,-410.16,Southern Electric,SEL007,Director of Community Services,Revenue,Premises Related Expenditure
http://www.ons.gov.uk/ons/guide-method/geography/products/names--codes-and-look-ups/names-and-codes-listings/names-and-codes-for-administrative-geography/index.html,Thanet District Council,25/06/2013,340201,-252.11,Southern Electric,SEL007,Director of Operational Services,Revenue,Premises Related Expenditure
http://www.ons.gov.uk/ons/guide-method/geography/products/names--codes-and-look-ups/names-and-codes-listings/names-and-codes-for-administrative-geography/index.html,Thanet District Council,25/06/2013,340209,1219.28,Southern Electric,SEL007,Director of Operational Services,Revenue,Premises Related Expenditure
http://www.ons.gov.uk/ons/guide-method/geography/products/names--codes-and-look-ups/names-and-codes-listings/names-and-codes-for-administrative-geography/index.html,Thanet District Council,25/06/2013,340216,3433.05,Southern Electric,SEL007,Director of Community Services,Revenue,Premises Related Expenditure
http://www.ons.gov.uk/ons/guide-method/geography/products/names--codes-and-look-ups/names-and-codes-listings/names-and-codes-for-administrative-geography/index.html,Thanet District Council,25/06/2013,340217,6654.27,Southern Electric,SEL007,Director of Community Services,Revenue,Premises Related Expenditure
http://www.ons.gov.uk/ons/guide-method/geography/products/names--codes-and-look-ups/names-and-codes-listings/names-and-codes-for-administrative-geography/index.html,Thanet District Council,25/06/2013,340263,583.18,Southern Electric,SEL007,Director of Operational Services,Revenue,Premises Related Expenditure
http://www.ons.gov.uk/ons/guide-method/geography/products/names--codes-and-look-ups/names-and-codes-listings/names-and-codes-for-administrative-geography/index.html,Thanet District Council,25/06/2013,339957,283.54,Southern Water,SWA001,Director of Operational Services,Revenue,Premises Related Expenditure
http://www.ons.gov.uk/ons/guide-method/geography/products/names--codes-and-look-ups/names-and-codes-listings/names-and-codes-for-administrative-geography/index.html,Thanet District Council,25/06/2013,339961,1008.92,Southern Water,SWA001,Director of Operational Services,Revenue,Premises Related Expenditure
http://www.ons.gov.uk/ons/guide-method/geography/products/names--codes-and-look-ups/names-and-codes-listings/names-and-codes-for-administrative-geography/index.html,Thanet District Council,25/06/2013,339962,1768.39,Southern Water,SWA001,Director of Operational Services,Revenue,Premises Related Expenditure
http://www.ons.gov.uk/ons/guide-method/geography/products/names--codes-and-look-ups/names-and-codes-listings/names-and-codes-for-administrative-geography/index.html,Thanet District Council,25/06/2013,339963,935.82,Southern Water,SWA001,Director of Operational Services,Revenue,Premises Related Expenditure
http://www.ons.gov.uk/ons/guide-method/geography/products/names--codes-and-look-ups/names-and-codes-listings/names-and-codes-for-administrative-geography/index.html,Thanet District Council,25/06/2013,340142,419.82,Southern Water,SWA001,Director of Operational Services,Revenue,Premises Related Expenditure
http://www.ons.gov.uk/ons/guide-method/geography/products/names--codes-and-look-ups/names-and-codes-listings/names-and-codes-for-administrative-geography/index.html,Thanet District Council,25/06/2013,340143,3985.44,Southern Water,SWA001,Director of Operational Services,Revenue,Premises Related Expenditure
http://www.ons.gov.uk/ons/guide-method/geography/products/names--codes-and-look-ups/names-and-codes-listings/names-and-codes-for-administrative-geography/index.html,Thanet District Council,25/06/2013,340232,2557.00,Speak It Ltd T/A The Speech Ctre,SPE021,Director of Corporate Services and Transformation,Revenue,Supplies And Services
http://www.ons.gov.uk/ons/guide-method/geography/products/names--codes-and-look-ups/names-and-codes-listings/names-and-codes-for-administrative-geography/index.html,Thanet District Council,25/06/2013,339669,3966.35,Stewart Anthony Ltd,ANT001,Director of Operational Services,Revenue,Premises Related Expenditure
http://www.ons.gov.uk/ons/guide-method/geography/products/names--codes-and-look-ups/names-and-codes-listings/names-and-codes-for-administrative-geography/index.html,Thanet District Council,25/06/2013,339671,702.89,Stewart Anthony Ltd,ANT001,Director of Operational Services,Revenue,Premises Related Expenditure
http://www.ons.gov.uk/ons/guide-method/geography/products/names--codes-and-look-ups/names-and-codes-listings/names-and-codes-for-administrative-geography/index.html,Thanet District Council,25/06/2013,340508,12000.00,Thanet Domestic Violence Forum,TDV001,Director of Community Services,Revenue,Supplies And Services
http://www.ons.gov.uk/ons/guide-method/geography/products/names--codes-and-look-ups/names-and-codes-listings/names-and-codes-for-administrative-geography/index.html,Thanet District Council,25/06/2013,339986,275.00,The Pipeline,PIP002,Director of Corporate Services and Transformation,Balance Sheet,Current Assets
http://www.ons.gov.uk/ons/guide-method/geography/products/names--codes-and-look-ups/names-and-codes-listings/names-and-codes-for-administrative-geography/index.html,Thanet District Council,25/06/2013,340175,1225.43,Thintech Ltd,THI009,East Kent Shared Services,Revenue,Supplies And Services
http://www.ons.gov.uk/ons/guide-method/geography/products/names--codes-and-look-ups/names-and-codes-listings/names-and-codes-for-administrative-geography/index.html,Thanet District Council,25/06/2013,340596,30.00,Thintech Ltd,THI009,East Kent Shared Services,Revenue,Supplies And Services
http://www.ons.gov.uk/ons/guide-method/geography/products/names--codes-and-look-ups/names-and-codes-listings/names-and-codes-for-administrative-geography/index.html,Thanet District Council,25/06/2013,340488,2853.60,Thomas Sinden Ltd,SIN009,Director of Corporate Services and Transformation,Balance Sheet,Long Term Assets
http://www.ons.gov.uk/ons/guide-method/geography/products/names--codes-and-look-ups/names-and-codes-listings/names-and-codes-for-administrative-geography/index.html,Thanet District Council,25/06/2013,340517,1000.00,Thomson Snell & Passmore,THO016,Director of Operational Services,Revenue,Supplies And Services
http://www.ons.gov.uk/ons/guide-method/geography/products/names--codes-and-look-ups/names-and-codes-listings/names-and-codes-for-administrative-geography/index.html,Thanet District Council,25/06/2013,340494,5357.00,Trowers & Hamlins,TRO001,Director of Corporate Services and Transformation,Balance Sheet,Long Term Assets
http://www.ons.gov.uk/ons/guide-method/geography/products/names--codes-and-look-ups/names-and-codes-listings/names-and-codes-for-administrative-geography/index.html,Thanet District Council,25/06/2013,340505,4787.00,Trueden Disability Care Ltd,TRU011,Director of Corporate Services and Transformation,Balance Sheet,Long Term Assets
http://www.ons.gov.uk/ons/guide-method/geography/products/names--codes-and-look-ups/names-and-codes-listings/names-and-codes-for-administrative-geography/index.html,Thanet District Council,25/06/2013,340495,1968.05,Veolia Es (Uk) Ltd,VEO001,Director of Operational Services,Revenue,Premises Related Expenditure
http://www.ons.gov.uk/ons/guide-method/geography/products/names--codes-and-look-ups/names-and-codes-listings/names-and-codes-for-administrative-geography/index.html,Thanet District Council,25/06/2013,339756,284.09,Viridor Waste Management Ltd,VIR003,Director of Operational Services,Revenue,Premises Related Expenditure
http://www.ons.gov.uk/ons/guide-method/geography/products/names--codes-and-look-ups/names-and-codes-listings/names-and-codes-for-administrative-geography/index.html,Thanet District Council,25/06/2013,340163,498.04,Viridor Waste Management Ltd,VIR003,Director of Operational Services,Revenue,Third Party Payments
http://www.ons.gov.uk/ons/guide-method/geography/products/names--codes-and-look-ups/names-and-codes-listings/names-and-codes-for-administrative-geography/index.html,Thanet District Council,25/06/2013,339758,270.00,W Brazil & Bros,BRA001,Director of Operational Services,Revenue,Supplies And Services
http://www.ons.gov.uk/ons/guide-method/geography/products/names--codes-and-look-ups/names-and-codes-listings/names-and-codes-for-administrative-geography/index.html,Thanet District Council,25/06/2013,340261,900.00,W Brazil & Bros,BRA001,Director of Corporate Services and Transformation,Balance Sheet,Current Assets
http://www.ons.gov.uk/ons/guide-method/geography/products/names--codes-and-look-ups/names-and-codes-listings/names-and-codes-for-administrative-geography/index.html,Thanet District Council,25/06/2013,338977,3157.36,Your Leisure Kent Limited,YOU016,Director of Corporate Services and Transformation,Revenue,Premises Related Expenditure
http://www.ons.gov.uk/ons/guide-method/geography/products/names--codes-and-look-ups/names-and-codes-listings/names-and-codes-for-administrative-geography/index.html,Thanet District Council,26/06/2013,340744,1351.71,Co-Operative Bank Paypoint,COO018,Director of Corporate Services and Transformation,Revenue,Supplies And Services
http://www.ons.gov.uk/ons/guide-method/geography/products/names--codes-and-look-ups/names-and-codes-listings/names-and-codes-for-administrative-geography/index.html,Thanet District Council,26/06/2013,340744,450.57,Co-Operative Bank Paypoint,COO018,Director of Community Services,Revenue,Supplies And Services
http://www.ons.gov.uk/ons/guide-method/geography/products/names--codes-and-look-ups/names-and-codes-listings/names-and-codes-for-administrative-geography/index.html,Thanet District Council,26/06/2013,PC4156,500.00,County Court Basildon,N/A,East Kent Shared Services,Revenue,Supplies And Services
http://www.ons.gov.uk/ons/guide-method/geography/products/names--codes-and-look-ups/names-and-codes-listings/names-and-codes-for-administrative-geography/index.html,Thanet District Council,26/06/2013,PC4032,354.86,Dropbox,N/A,East Kent Shared Services,Revenue,Supplies And Services
http://www.ons.gov.uk/ons/guide-method/geography/products/names--codes-and-look-ups/names-and-codes-listings/names-and-codes-for-administrative-geography/index.html,Thanet District Council,26/06/2013,340582,458.33,Eagle Sheds,EAG003,Director of Operational Services,Revenue,Supplies And Services
http://www.ons.gov.uk/ons/guide-method/geography/products/names--codes-and-look-ups/names-and-codes-listings/names-and-codes-for-administrative-geography/index.html,Thanet District Council,26/06/2013,340890,-458.33,Eagle Sheds,EAG003,Director of Operational Services,Revenue,Supplies And Services
http://www.ons.gov.uk/ons/guide-method/geography/products/names--codes-and-look-ups/names-and-codes-listings/names-and-codes-for-administrative-geography/index.html,Thanet District Council,26/06/2013,PC4016,279.00,H M Court Services,N/A,East Kent Shared Services,Revenue,Supplies And Services
http://www.ons.gov.uk/ons/guide-method/geography/products/names--codes-and-look-ups/names-and-codes-listings/names-and-codes-for-administrative-geography/index.html,Thanet District Council,26/06/2013,PC4018,345.00,H M Court Services,N/A,East Kent Shared Services,Revenue,Supplies And Services
http://www.ons.gov.uk/ons/guide-method/geography/products/names--codes-and-look-ups/names-and-codes-listings/names-and-codes-for-administrative-geography/index.html,Thanet District Council,26/06/2013,PC4019,519.00,H M Court Services,N/A,East Kent Shared Services,Revenue,Supplies And Services
http://www.ons.gov.uk/ons/guide-method/geography/products/names--codes-and-look-ups/names-and-codes-listings/names-and-codes-for-administrative-geography/index.html,Thanet District Council,26/06/2013,PC4022,3096.00,H M Court Services,N/A,East Kent Shared Services,Revenue,Supplies And Services
http://www.ons.gov.uk/ons/guide-method/geography/products/names--codes-and-look-ups/names-and-codes-listings/names-and-codes-for-administrative-geography/index.html,Thanet District Council,26/06/2013,PC4023,1680.00,H M Court Services,N/A,East Kent Shared Services,Revenue,Supplies And Services
http://www.ons.gov.uk/ons/guide-method/geography/products/names--codes-and-look-ups/names-and-codes-listings/names-and-codes-for-administrative-geography/index.html,Thanet District Council,26/06/2013,PC4024,3303.00,H M Court Services,N/A,East Kent Shared Services,Revenue,Supplies And Services
http://www.ons.gov.uk/ons/guide-method/geography/products/names--codes-and-look-ups/names-and-codes-listings/names-and-codes-for-administrative-geography/index.html,Thanet District Council,26/06/2013,PC4126,2421.00,H M Court Services,N/A,East Kent Shared Services,Revenue,Supplies And Services
http://www.ons.gov.uk/ons/guide-method/geography/products/names--codes-and-look-ups/names-and-codes-listings/names-and-codes-for-administrative-geography/index.html,Thanet District Council,26/06/2013,PC4127,6606.00,H M Court Services,N/A,East Kent Shared Services,Revenue,Supplies And Services
http://www.ons.gov.uk/ons/guide-method/geography/products/names--codes-and-look-ups/names-and-codes-listings/names-and-codes-for-administrative-geography/index.html,Thanet District Council,26/06/2013,PC4128,4767.00,H M Court Services,N/A,East Kent Shared Services,Revenue,Supplies And Services
http://www.ons.gov.uk/ons/guide-method/geography/products/names--codes-and-look-ups/names-and-codes-listings/names-and-codes-for-administrative-geography/index.html,Thanet District Council,26/06/2013,PC4111,296.64,Hampshire Hotel Savoy Rotterdam,N/A,Director of Community Services,Revenue,Supplies And Services
http://www.ons.gov.uk/ons/guide-method/geography/products/names--codes-and-look-ups/names-and-codes-listings/names-and-codes-for-administrative-geography/index.html,Thanet District Council,26/06/2013,PC4033,250.00,MC Truck & Bus Ltd,N/A,Director of Corporate Services and Transformation,Balance Sheet,Current Assets
http://www.ons.gov.uk/ons/guide-method/geography/products/names--codes-and-look-ups/names-and-codes-listings/names-and-codes-for-administrative-geography/index.html,Thanet District Council,26/06/2013,PC4034,1755.15,MC Truck & Bus Ltd,N/A,Director of Corporate Services and Transformation,Balance Sheet,Current Assets
http://www.ons.gov.uk/ons/guide-method/geography/products/names--codes-and-look-ups/names-and-codes-listings/names-and-codes-for-administrative-geography/index.html,Thanet District Council,26/06/2013,PC4035,-1755.15,MC Truck & Bus Ltd,N/A,Director of Corporate Services and Transformation,Balance Sheet,Current Assets
http://www.ons.gov.uk/ons/guide-method/geography/products/names--codes-and-look-ups/names-and-codes-listings/names-and-codes-for-administrative-geography/index.html,Thanet District Council,26/06/2013,340741,1046.32,Nat West Bank,NWE001,East Kent Shared Services,Revenue,Supplies And Services
http://www.ons.gov.uk/ons/guide-method/geography/products/names--codes-and-look-ups/names-and-codes-listings/names-and-codes-for-administrative-geography/index.html,Thanet District Council,26/06/2013,340742,2381.83,Nat West Bank,NWE001,Director of Corporate Services and Transformation,Revenue,Supplies And Services
http://www.ons.gov.uk/ons/guide-method/geography/products/names--codes-and-look-ups/names-and-codes-listings/names-and-codes-for-administrative-geography/index.html,Thanet District Council,26/06/2013,PC4046,221.67,Old Trafford Lodge,N/A,Director of Community Services,Revenue,Supplies And Services
http://www.ons.gov.uk/ons/guide-method/geography/products/names--codes-and-look-ups/names-and-codes-listings/names-and-codes-for-administrative-geography/index.html,Thanet District Council,26/06/2013,PC4071,662.25,Trews,N/A,Director of Operational Services,Revenue,Supplies And Services
http://www.ons.gov.uk/ons/guide-method/geography/products/names--codes-and-look-ups/names-and-codes-listings/names-and-codes-for-administrative-geography/index.html,Thanet District Council,28/06/2013,340269,334.80,123 Send Ltd,123001,Director of Operational Services,Revenue,Supplies And Services
